Cogmind - Beta 16.1 @@@ ROGUE MODE // 2026.04.13 @ 00:36:26 Player: GiggleBox Result: Escaped! Performance ------------- Evolutions (9) 4500 Regions Visited (29) 5800 Robots Destroyed (421) 2105 Value Destroyed (21600) 21600 Prototype IDs (122) 2440 Alien Tech Used (3) 600 Bonus (20473) 20473 TOTAL SCORE: 57518 Bonus ------- High Alert Combat Kills 1934 Follower Combat Kills 2609 Network Hubs Disabled 200 Met Zhirov 300 Met Warlord at Base 500 MAIN.C Attacked Warlord 500 Warlord Defense Kills 2676 Built Enhanced Grunts 300 A7 Reached Mainframe 300 Met R17 at Cetus 500 Met R17 at Research 2000 Met Warlord at Research 2000 Invited to Help at Command 2000 Destroyed MAIN.C Guards 500 Met MAIN.C 5000 Met Warlord at Command 2000 Win 3000 Friendly Fire -5846 Cogmind --------- Core Integrity 858/1600 Matter 285/300 Energy 563/565 System Corruption 46% Temperature Cool (12) Movement Treading (54) Location To Epsilon Eridani Parts ------- > --- POWER (2) -------- Neutrino Core Multi-Quantum Reactor > --- PROPULSION (5) --- Treaded Diametric-ED Exoskeleton > --- UTILITY (12) ----- Scrap Engine Concept Phasing Heat Sink Experimental Cooling System High-capacity Storage Unit Experimental Optical Array Advanced Signal Interpreter Experimental Core Analyzer Improved Armor Integrity Analyzer Experimental Reaction Control System Centrium Medium Armor Plating > --- WEAPON (6) ------- Advanced Remote Datajack Hpw. Accelerated Battle Construct/G > --- INVENTORY (20) --- Improved Ion Engine Light Antimatter Reactor Light Antimatter Reactor Combat Linear Gravjet Faulty Diametric Drive High-capacity Storage Unit Concept Chromion Battery (800) Improved Matter Compressor (300) Long-range Sensor Array Advanced Weapon Cycler Advanced Transmission Jammer Improved Cloaking Device Experimental Cloaking Device Crosscalibrator Subatomic Replicator Heavy Machine Gun Hellfire Missile Launcher Improved Remote Datajack Peak State ------------ > --- POWER ------------ Micro Antimatter Reactor Multi-Quantum Reactor > --- PROPULSION ------- Treaded Diametric-ED Exoskeleton > --- UTILITY ---------- Armored Scrap Engine High-capacity Storage Unit Experimental Optical Array Long-range Sensor Array Advanced Signal Interpreter Experimental Core Analyzer Improved Armor Integrity Analyzer Improved Transmission Jammer Experimental Cloaking Device Centrium Medium Armor Plating > --- WEAPON ----------- Concept XC Strikerail Hpw. Accelerated Battle Construct/G > --- INVENTORY -------- Diametric Drive Advanced Cooling System Advanced Cooling System Concept Chromion Battery Improved Matter Compressor Improved Kinecellerator Improved Weapon Cycler Advanced Reaction Control System Improved Cloaking Device Centrium Medium Armor Plating Medium Regenerative Plating Advanced Force Field Advanced Point Defense System Crosscalibrator Mapping Drone Bay Transdimensional Reconstructor Subatomic Replicator Concept XC Strikerail Advanced Remote Datajack Experimental Jetlance [Rating: 210] Favorites ----------- Power Constructs Engine Ion Engine Power Core Light Nuclear Core Reactor Constructs Propulsion Constructs Treads Constructs Leg Aluminum Leg Wheel Compact Wheel Utility Armored Scrap Engine Device Armored Scrap Engine Storage High-capacity Storage Unit Processor Advanced Targeting Computer Hackware Advanced Hacking Suite Protection Medium Regenerative Plating Weapon Constructs Energy Gun Medium Laser Ballistic Gun Constructs Special Weapon Advanced Remote Datajack Slashing Weapon Katana Piercing Weapon Experimental Jetlance Build | -11 -10 -10 -8 -8 -8 -6 -6 -6 -6 -6 -5 -5 -5 -5 -5 -5 -4 -4 -4 -4 -4 -3 -3 -3 -2 -2 -2 -1 -1 ------- Run | Yrd Mat Sub Mat Sto Rec Fac Ext Cet Arc Hub Fac Was Fac Upp Upp War Pro Fac Upp Upp Zhi Pro Res Qua Res Tes Frg Acc Com Slots Evolved 18 | . . . 4 . . 4 . . . . 2 . . . . . . 2 . . . . 2 . 2 . . 2 . Power 1 | . . . . . . . . . . . 1 . . . . . . . . . . . . . . . . . . Propulsion 3 | . . . 2 . . . . . . . . . . . . . . 1 . . . . . . . . . . . Utility 10 | . . . 1 . . 3 . . . . 1 . . . . . . 1 . . . . 2 . 1 . . 1 . Weapon 4 | . . . 1 . . 1 . . . . . . . . . . . . . . . . . . 1 . . 1 . Parts Attached 111 | 3 2 3 19 5 2 9 . 9 . . 4 . 1 . . 2 . 3 2 . 3 . 5 1 7 3 14 3 11 Power 10 | . . 1 1 . 1 . . . . . . . . . . . . . . . . . . . . . 1 . 6 Engine 5 | . . 1 . . 1 . . . . . . . . . . . . . . . . . . . . . . . 3 Core 2 | . . . 1 . . . . . . . . . . . . . . . . . . . . . . . . . 1 Reactor 3 | . . . . . . . . . . . . . . . . . . . . . . . . . . . 1 . 2 Propulsion 13 | 2 . 1 9 1 . . . . . . . . . . . . . . . . . . . . . . . . . Treads 11 | 2 . 1 7 1 . . . . . . . . . . . . . . . . . . . . . . . . . Leg . | . . . . . . . . . . . . . . . . . . . . . . . . . . . . . . Wheel 2 | . . . 2 . . . . . . . . . . . . . . . . . . . . . . . . . . Hover . | . . . . . . . . . . . . . . . . . . . . . . . . . . . . . . Flight . | . . . . . . . . . . . . . . . . . . . . . . . . . . . . . . Utility 71 | 1 2 . 5 . 1 9 . 7 . . 4 . 1 . . 2 . 3 2 . 3 . 5 1 7 2 9 3 4 Device 39 | 1 . . 3 . 1 4 . 3 . . 2 . 1 . . 2 . . 2 . 1 . 3 . 2 2 8 2 2 Storage 7 | . 1 . 1 . . . . 1 . . 1 . . . . . . . . . 1 . . 1 . . . . 1 Processor 7 | . . . . . . 1 . . . . 1 . . . . . . . . . . . 1 . 4 . . . . Hackware 2 | . . . . . . . . . . . . . . . . . . 2 . . . . . . . . . . . Protection 16 | . 1 . 1 . . 4 . 3 . . . . . . . . . 1 . . 1 . 1 . 1 . 1 1 1 Artifact . | . . . . . . . . . . . . . . . . . . . . . . . . . . . . . . Weapon 17 | . . 1 4 4 . . . 2 . . . . . . . . . . . . . . . . . 1 4 . 1 Energy Gun . | . . . . . . . . . . . . . . . . . . . . . . . . . . . . . . Energy Cannon . | . . . . . . . . . . . . . . . . . . . . . . . . . . . . . . Ballistic Gun 13 | . . 1 4 3 . . . 2 . . . . . . . . . . . . . . . . . 1 2 . . Ballistic Cannon . | . . . . . . . . . . . . . . . . . . . . . . . . . . . . . . Launcher . | . . . . . . . . . . . . . . . . . . . . . . . . . . . . . . Special Weapon 1 | . . . . . . . . . . . . . . . . . . . . . . . . . . . . . 1 Impact Weapon . | . . . . . . . . . . . . . . . . . . . . . . . . . . . . . . Slashing Weapon 2 | . . . . 1 . . . . . . . . . . . . . . . . . . . . . . 1 . . Piercing Weapon 1 | . . . . . . . . . . . . . . . . . . . . . . . . . . . 1 . . Special Melee Weapon . | . . . . . . . . . . . . . . . . . . . . . . . . . . . . . . Unidentified Prototypes 26 | . . . 1 1 1 . . 5 . . . . . . . 2 . 1 . . 3 . 1 . 3 1 6 . 1 Parts Lost 27 | . . 1 . 1 2 . . . . . . . . . . . . . . . . . . . . . 3 7 13 Power 5 | . . . . . 1 . . . . . . . . . . . . . . . . . . . . . 1 1 2 Propulsion 3 | . . 1 . . 1 . . . . . . . . . . . . . . . . . . . . . . . 1 Utility 11 | . . . . . . . . . . . . . . . . . . . . . . . . . . . 1 5 5 Weapon 8 | . . . . 1 . . . . . . . . . . . . . . . . . . . . . . 1 1 5 Highest Loss Streak 11 | . . 1 . 1 1 . . . . . . . . . . . . . . . . . . . . . 1 3 11 To Critical Strikes 1 | . . . . . . . . . . . . . . . . . . . . . . . . . . . . . 1 Average Backups 16 | 6 8 13 16 18 16 13 13 13 13 13 14 16 18 18 18 19 20 17 17 19 19 20 19 19 19 19 19 16 17 Power . | 1 1 1 1 1 . . . . 1 1 . 1 2 2 2 1 1 1 . . . . . . . . . . 1 Propulsion 2 | 4 4 4 2 5 4 1 1 1 1 1 2 2 1 2 2 3 5 1 . . 1 2 3 2 1 . 1 1 1 Utility 9 | . 2 3 4 5 5 8 7 7 9 10 9 9 9 9 9 11 12 13 13 13 13 12 11 12 13 14 13 11 9 Weapon 3 | 1 1 4 8 7 6 3 3 3 2 1 2 4 6 5 4 2 2 2 3 4 5 5 3 1 . . 1 1 1 Tool/Special . | . . . . . . . . . . . . . . . . . . . . . . . . . . . . . . Unused Backups 157 | . 2 2 15 . 20 14 20 7 2 2 2 5 1 1 2 6 . 9 4 2 2 . 17 1 3 1 3 . 14 Power 9 | . . 1 . . . . 2 . . . 1 . . . . 1 . . 1 . . . . . . . . . 3 Propulsion 68 | . . . 8 . 5 7 7 4 . 1 . 4 1 . 1 2 . 7 2 . 1 . 13 . 1 1 . . 3 Utility 13 | . 2 . . . . 2 1 . . . 1 . . . . 1 . . . . 1 . 1 . . . 1 . 3 Weapon 65 | . . 1 7 . 15 5 10 3 2 1 . 1 . 1 1 2 . 2 1 2 . . 3 1 2 . 2 . 3 Tool/Special 2 | . . . . . . . . . . . . . . . . . . . . . . . . . . . . . 2 Average Slot Usage (%) 63 | . 100 99 99 100 67 51 53 53 53 53 52 52 52 52 52 51 52 51 52 52 52 52 56 57 56 56 59 57 60 Engine 2 | . 14 14 . . 8 6 2 . . . . . . . . . . . . . . . . . . . . . . Core 1 | . . . 8 9 . . 4 4 . . . . . . . . . . . 4 5 5 2 . . . . 2 . Reactor 2 | . . . . . . . . 1 6 6 5 5 5 5 5 5 5 5 5 . . . 1 4 4 4 5 . 5 Treads 7 | . 28 27 32 36 17 1 2 . . 3 5 2 . . . . . . . . . . . 4 1 . . 4 4 Flight 1 | . . . . . . 1 1 3 . . . . 1 5 5 4 5 . . . . . . . 2 4 3 . . Device 13 | . 8 13 9 9 8 15 13 13 13 19 16 17 13 11 11 11 11 12 14 15 15 15 18 19 15 13 16 18 17 Storage 6 | . 14 14 9 9 9 6 6 6 6 6 5 5 5 5 5 5 5 5 5 5 5 5 4 4 4 4 4 4 4 Processor 8 | . . . . . . 2 6 6 6 6 11 11 11 11 11 11 11 10 10 10 10 10 14 14 18 21 17 16 16 Protection 4 | . 5 . 8 9 3 5 6 6 6 . . . 3 5 5 4 5 5 5 5 5 5 4 4 4 4 2 2 3 Energy Gun 1 | . 14 14 . . . . . . . . . . . . . . . . . . . . . . . . . . . Energy Cannon 1 | . . . . . 2 3 1 . . . . 1 5 4 2 4 . . . 5 5 5 3 . . . . . 1 Ballistic Gun 4 | . 14 14 26 26 10 . . . . . . . . . . . . . . . . . . . . . 2 3 . Ballistic Cannon 2 | . . . . . 1 2 4 6 6 6 5 3 . . 2 . 5 5 4 . . . . 4 3 4 3 4 2 Peak Build Rating 210 | 7 8 12 40 40 48 69 78 98 106 106 115 114 114 115 114 123 131 138 134 133 138 139 164 163 182 196 210 203 203 Average Rating 102 | 6 7 10 33 39 39 64 72 90 99 102 111 110 112 113 110 116 129 134 131 131 133 138 158 161 174 183 195 183 182 On Entrance 103 | 6 7 8 12 40 39 46 66 75 97 105 105 114 109 114 113 109 123 131 130 131 131 138 138 161 161 181 188 171 162 Avg Prop Armor Cover (%) 10 | . . . 12 . 8 . . . . . . . . . . . . . . . . . . . . . . . . Naked Turns . | . . . . . . . . . . . . . . . . . . . . . . . . . . . . . . Heaviest Build 129 | 15 30 32 59 59 59 57 71 73 69 69 93 94 91 92 105 106 102 103 112 127 126 127 129 117 125 104 106 110 122 Greatest Support 221 | 40 40 40 86 86 86 79 141 146 192 221 221 221 180 95 95 119 119 119 71 71 88 88 157 157 157 157 192 192 192 Greatest Overweight (x) 2 | . . 1 1 . 1 1 1 . . . . . . . 1 1 . 2 2 1 1 1 1 . . . . . . Average Overweight (x) . | . . . . . . . . . . . . . . . . . . 1 1 1 1 1 . . . . . . . Largest Inventory Capacity 20 | 8 15 15 20 20 20 15 15 15 15 15 20 20 20 20 20 20 20 20 20 20 20 20 20 20 20 20 20 20 20 Average Capacity 18 | 8 12 15 18 20 19 15 15 15 15 15 16 20 20 20 20 20 20 20 20 20 20 20 20 20 20 20 20 20 20 Most Carried 20 | 6 9 15 20 20 20 15 15 15 15 15 18 18 20 20 19 20 20 19 20 20 20 20 20 20 20 20 20 19 20 Average Carried 16 | 6 8 14 17 19 16 13 13 14 14 13 14 17 18 19 18 19 20 17 17 19 19 20 19 19 19 19 19 16 17 Final Capacity 20 | 8 15 15 20 20 15 15 15 15 15 15 20 20 20 20 20 20 20 20 20 20 20 20 20 20 20 20 20 20 20 Final Carried 20 | 6 9 15 20 20 9 13 13 15 13 15 18 18 20 19 18 20 20 18 16 20 20 20 19 20 19 20 19 13 18 Scrap Engine Consumption 315 | . . . . . 61 34 50 14 6 5 3 10 4 2 5 10 1 15 8 4 3 1 27 1 13 6 19 2 11 Constructs Created 4 | . . . . . 3 . . . . . . . . . . . . . . . . . . . . . . . 1 Constructs Modified 141 | . . . . . 23 17 22 6 4 3 2 4 2 1 2 4 1 7 3 2 1 . 14 . 7 3 7 2 4 Class Distribution -------------------- 53% | Construct 14% | Commander-Construct 9% | Mutant 9% | Tank 3% | Scavenger-Construct 3% | Scavenger-Assassin Dominant Class ---------------- Mutant | -10/Materials Mutant | -10/Subcaves Tank | -8/Materials Tank | -8/Storage Construct | -8/Recycling Construct | -6/Factory Commander-Construct | -6/Extension Commander-Construct | -6/Cetus Commander-Construct | -6/Archives Commander-Construct | -6/Hub_04(d) Construct | -5/Factory Construct | -5/Waste Construct | -5/Factory Construct | -5/Upper Caves Construct | -5/Upper Caves Commander-Construct | -5/Warlord Commander-Construct | -4/Proximity Caves Construct | -4/Factory Construct | -4/Upper Caves Construct | -4/Upper Caves Construct | -4/Zhirov Construct | -3/Proximity Caves Construct | -3/Research Construct | -3/Quarantine Construct | -2/Research Construct | -2/Testing Scavenger-Construct | -2/Protoforge Construct | -1/Access Scavenger-Assassin | -1/Command Resources | -11 -10 -10 -8 -8 -8 -6 -6 -6 -6 -6 -5 -5 -5 -5 -5 -5 -4 -4 -4 -4 -4 -3 -3 -3 -2 -2 -2 -1 -1 ----------- Run | Yrd Mat Sub Mat Sto Rec Fac Ext Cet Arc Hub Fac Was Fac Upp Upp War Pro Fac Upp Upp Zhi Pro Res Qua Res Tes Frg Acc Com Matter Collected 9729 | 248 192 128 1052 316 651 541 346 306 92 263 281 304 114 74 124 256 190 282 188 34 250 175 132 54 144 316 1796 308 572 Remotely . | . . . . . . . . . . . . . . . . . . . . . . . . . . . . . . Salvage Created 25786 | 118 388 164 1360 490 1093 1177 3480 584 231 502 539 1539 374 105 590 1206 1064 2230 585 147 . 193 1221 373 2276 530 1903 834 490 Parts 1125 | 5 29 10 78 35 35 73 123 35 16 25 30 10 9 3 13 53 39 100 21 3 . 7 51 21 101 22 105 55 18 Haulers Intercepted 22 | . . . 4 2 1 1 6 . . 1 . . 2 . . . . 2 . . . . 1 1 . 1 . . . Recyclers Shooed 2 | . . . . . . . . . . . . . . . . . . 2 . . . . . . . . . . . Parts Field Recycled . | . . . . . . . . . . . . . . . . . . . . . . . . . . . . . . Retrieved Matter . | . . . . . . . . . . . . . . . . . . . . . . . . . . . . . . Parts Self-Destructed 105 | . . 9 . . . . . . . . . . . 10 19 . 39 . 19 3 . 6 . . . . . . . Prevented 8 | . . . . . . . . . . . . . . . 8 . . . . . . . . . . . . . . Parts Restored 2 | . . . . . . . . . . . . . . . . . . . . . . . . . . . 2 . . Faulty 2 | . . . . . . . . . . . . . . . . . . . . . . . . . . . 2 . . Kills | -11 -10 -10 -8 -8 -8 -6 -6 -6 -6 -6 -5 -5 -5 -5 -5 -5 -4 -4 -4 -4 -4 -3 -3 -3 -2 -2 -2 -1 -1 ------- Run | Yrd Mat Sub Mat Sto Rec Fac Ext Cet Arc Hub Fac Was Fac Upp Upp War Pro Fac Upp Upp Zhi Pro Res Qua Res Tes Frg Acc Com Combat Hostiles Destroyed 327 | . 10 4 26 9 15 15 33 5 1 5 8 6 1 2 7 21 16 23 9 2 . 4 19 4 33 5 28 15 1 Melee 4 | . . . . . 4 . . . . . . . . . . . . . . . . . . . . . . . . Guns 98 | . 10 4 26 9 8 . . . . . . . . . . . . . . . . . . . . . 27 14 . Cannons 219 | . . . . . 3 15 29 5 1 5 7 6 1 2 7 20 16 23 9 2 . 4 19 4 33 5 1 1 1 Classes Destroyed 26 | 2 3 1 3 4 3 1 2 . . 1 . 1 . . . 2 . . . . . 1 . . 1 . 1 . . Worker 12 | . . . . . 1 1 2 . . . 3 . . . . . . 2 . . . . . . 1 . . 1 1 Builder 11 | . . . . . 1 1 2 . . . 6 . . . . . . 1 . . . . . . . . . . . Tunneler 1 | 1 . . . . . . . . . . . . . . . . . . . . . . . . . . . . . Hauler 22 | . . . 4 2 1 1 6 . . 1 . . 2 . . . . 2 . . . . 1 1 . 1 . . . Recycler 15 | 1 . . . . 1 . 3 . . 1 1 . 1 . . . . 6 . . . . . . . . . . 1 Mechanic 1 | . . . . . . . 1 . . . . . . . . . . . . . . . . . . . . . . Operator 7 | . . . . 1 . 2 . . 2 1 . . . . . . . . . . . . . . . . . . 1 Drone 1 | . . . . . . . . . . . . . . . . . . . . . . 1 . . . . . . . Watcher 19 | . 1 . 1 . . 1 1 1 . . 1 . . . . . . 4 . . . . 1 1 3 1 . 3 . Swarmer 55 | . 3 . 5 . . 1 4 . . . 4 . . . . 2 1 7 1 . . . 6 . 6 . 5 10 . Grunt 89 | . 7 . 14 2 3 7 10 . . 2 1 . . 1 6 7 11 . 1 1 . . 8 1 5 . . 2 . Brawler 7 | . . . . . 1 . 2 . . . . . 1 . 1 1 . . 1 . . . . . . . . . . Duelist 8 | . . . 1 . 1 . 2 . . . . . . . . . 2 . 2 . . . . . . . . . . Protector 2 | . . . . . . . . . . . . . . . . 1 1 . . . . . . . . . . . . Sentry 49 | . . . 6 3 2 5 11 . 1 2 1 . . 1 . . 1 2 1 1 . . 2 . 4 . 5 1 . Demolisher 6 | . . . . 1 1 . . . . . . . . . . 1 . . . . . . 1 . 2 . . . . Hunter 32 | . . . . 1 1 . . . . . . . . . . 4 . 4 2 . . 2 . 2 6 5 4 . 1 Programmer 28 | . . . . . . 2 1 . . . 2 . . . . 2 . 9 . . . . . 1 2 . 7 2 . Heavy 1 | . . . . . . . . . . 1 . . . . . . . . . . . . . . . . . . . Behemoth 6 | . . . . . . . 2 . . . . . . . . 1 . 1 1 . . 1 . . . . . . . Compactor 6 | . . . . . . . . . . . . 6 . . . . . . . . . . . . . . . . . Cetus Guard 5 | . . . . . . . . 5 . . . . . . . . . . . . . . . . . . . . . Decapitator 4 | . . . . . . . . . . . . . . . . . . . . . . . . . . . 4 . . Immortal 3 | . . . . . . . . . . . . . . . . . . . . . . . . . . . 3 . . Striker 8 | . . . . . . . . . . . . . . . . 1 . . . . . . 2 . 5 . . . . Executioner 3 | . . . . . . . . . . . . . . . . . . . . . . . . . 3 . . . . Subdweller 10 | . . 4 . . 6 . . . . . . . . . . . . . . . . . . . . . . . . Assembled 3 | . . . . 3 . . . . . . . . . . . . . . . . . . . . . . . . . Surgeon 1 | . . . . . . . . . . . . . . . 1 . . . . . . . . . . . . . . Wasp 3 | . . . . . . . . . . . . . 1 . 2 . . . . . . . . . . . . . . Thug 2 | . . . . . . . 1 . . . . . . . . 1 . . . . . . . . . . . . . Butcher 1 | . . . . . . . . 1 . . . . . . . . . . . . . . . . . . . . . Martyr 1 | . . . . . . . . . . . . . . . 1 . . . . . . . . . . . . . . Guerrilla 1 | . . . . . . . . . 1 . . . . . . . . . . . . . . . . . . . . Best Kill Streak 18 | 2 3 2 7 4 4 4 8 5 2 3 18 5 1 1 3 8 8 8 5 1 . 2 5 3 5 3 4 5 1 Combat Bots Only 8 | . 2 2 7 4 4 4 5 4 1 2 7 5 1 1 3 8 8 6 5 1 . 2 5 2 5 3 4 4 1 Max Kills in Single Turn 4 | 1 1 1 2 1 1 2 3 1 1 2 4 1 1 1 2 2 2 2 1 1 . 1 1 1 2 1 1 2 1 Gunslinging 1 | . . . 1 . . . . . . . . . . . . . . . . . . . . . . . . . . Exploded . | . . . . . . . . . . . . . . . . . . . . . . . . . . . . . . Melee 1 | . . . . . 1 . . . . . . . . . . . . . . . . . . . . . . . . Uniques/NPCs Destroyed 1 | . . . . . . . . 1 . . . . . . . . . . . . . . . . . . . . . A7 (-6/Cetus) Combat | -11 -10 -10 -8 -8 -8 -6 -6 -6 -6 -6 -5 -5 -5 -5 -5 -5 -4 -4 -4 -4 -4 -3 -3 -3 -2 -2 -2 -1 -1 -------- Run | Yrd Mat Sub Mat Sto Rec Fac Ext Cet Arc Hub Fac Was Fac Upp Upp War Pro Fac Upp Upp Zhi Pro Res Qua Res Tes Frg Acc Com Hostile Shots Fired 1651 | . 40 11 80 60 33 107 121 24 . 28 15 . 3 6 13 44 41 100 41 4 . 23 36 18 71 43 321 227 141 Missed 560 | . 8 3 25 12 6 42 45 11 . 7 4 . 3 2 5 21 18 33 9 2 . 8 11 4 28 21 129 79 24 Intercepted 25 | . . . . . . . . . . . . . . . . . . . . . . . . . . . . . 25 Hits 1091 | . 32 8 55 48 27 65 76 13 . 21 11 . . 4 8 23 23 67 32 2 . 15 25 14 43 22 192 148 117 Melee 28 | . . . 1 . . . 1 . . . . . . . . . . . . . . . . . . . 25 . 1 Projectile 1063 | . 32 8 54 48 27 65 75 13 . 21 11 . . 4 8 23 23 67 32 2 . 15 25 14 43 22 167 148 116 AOE 22 | . . . . 1 . . . . . 2 . . . . . 3 . . . . . . 5 . 4 . . . 7 Critical Strikes 72 | . . . 4 1 2 1 . 4 . 1 . . . . . . 3 2 2 . . 1 3 2 . . 24 5 17 Damage Taken 22477 | . 366 202 732 719 523 825 889 239 . 456 210 . 21 120 158 298 285 1191 498 19 . 210 442 133 1332 778 4769 2739 4323 Core 1934 | . 61 19 87 43 19 41 28 12 . 73 76 . . . 49 7 12 34 . . . 29 39 32 117 68 346 203 539 Absorbed by Shields 1797 | . . . . . . . 7 129 . . . . . . . 251 166 64 304 19 . 214 454 144 . . 45 . . Redirected to Shielding 12 | . 8 4 . . . . . . . . . . . . . . . . . . . . . . . . . . . Regen/Repaired (Parts) 9390 | . . . . . 5 615 420 508 130 120 227 99 15 95 134 134 124 1108 373 60 . 17 556 85 956 822 1867 266 654 Core Remaining (%) 78 | 100 . 68 . . 72 . . . . 81 . . . . . . 85 . . . . 94 . 94 . . 58 . 53 Volleys Fired 1044 | 6 34 18 74 41 44 49 70 27 9 14 13 17 14 9 14 36 28 56 25 4 . 15 42 24 90 25 163 52 31 Largest 3 | 2 2 2 3 3 3 1 1 1 1 1 1 1 1 1 1 1 1 1 1 1 . 1 1 1 1 1 2 1 1 Hottest 421 | 70 70 80 110 75 193 193 239 179 154 233 233 119 119 119 119 121 121 87 87 87 . 87 87 87 87 87 106 421 421 Shots Fired 1358 | 12 68 27 222 123 82 48 70 27 9 14 13 17 14 9 14 36 28 56 25 4 . 15 42 24 90 25 162 52 30 Gun 715 | 12 68 27 222 123 61 . . . . . . . . . . . . . . . . . . . . . 150 50 2 Cannon 642 | . . . . . 21 48 70 27 9 14 13 17 14 9 14 36 28 56 25 4 . 15 42 24 90 25 12 2 27 Launcher . | . . . . . . . . . . . . . . . . . . . . . . . . . . . . . . Special 1 | . . . . . . . . . . . . . . . . . . . . . . . . . . . . . 1 Kinetic 1101 | 6 34 18 217 123 62 42 45 27 9 14 13 17 . . 8 . 26 56 25 . . . . 24 86 23 152 50 24 Thermal 251 | 6 34 9 5 . 20 6 20 . . . . . 14 9 6 36 2 . . 4 . 15 42 . 4 2 10 2 5 Explosive . | . . . . . . . . . . . . . . . . . . . . . . . . . . . . . . Electromagnetic 5 | . . . . . . . 5 . . . . . . . . . . . . . . . . . . . . . . Robot Hit Streak 147 | 3 13 14 16 13 19 8 16 21 6 9 9 10 9 4 6 8 7 7 18 3 . 15 7 3 8 4 122 147 26 Robot Miss Streak 7 | 3 2 1 3 5 2 5 3 3 5 5 3 2 3 4 2 7 5 5 2 1 . 5 5 4 5 3 2 2 4 Penetration Max 2 | . . . . . . 1 2 1 . . . . . . . . . . . . . . . . 1 . 1 1 . Secondary Targets 8 | . . . 4 3 1 . . . . . . . . . . . . . . . . . . . . . . . . Max Gunslinging Chain 1 | . . . 1 1 1 . . . . . . . . . . . . . . . . . . . . . . . . Shots Hit Robots 1056 | 6 47 16 146 67 88 32 66 21 9 14 12 17 11 9 12 32 22 47 24 2 . 12 34 8 60 10 153 50 29 Core Hits 593 | 3 18 8 53 25 27 23 62 22 10 9 15 14 5 2 11 25 18 38 13 2 . 5 24 6 34 7 76 26 12 Critical Kills 13 | . . . . . . . . . . . . . . . . . . . . . . . . . . . 9 4 . Critical Parts Destroyed 15 | . . . 1 . . . . 3 . . . . . . . . . . . . . . . . . 1 8 2 . Critical Strikes 39 | . 3 1 1 . 1 . . 4 . . . . . . . . . 1 . . . . . . . 1 19 6 2 Burn 4 | . 3 1 . . . . . . . . . . . . . . . . . . . . . . . . . . . Destroy 30 | . . . 1 . . . . 4 . . . . . . . . . . . . . . . . . 1 18 6 . Blast 1 | . . . . . . . . . . . . . . . . . . 1 . . . . . . . . . . . Sever 3 | . . . . . 1 . . . . . . . . . . . . . . . . . . . . . 1 . 1 Impale 1 | . . . . . . . . . . . . . . . . . . . . . . . . . . . . . 1 Melee Attacks 50 | . . . . 3 22 . . . . . . . . . . . . . . . . . . . . . 10 . 15 Impact . | . . . . . . . . . . . . . . . . . . . . . . . . . . . . . . Slashing 43 | . . . . 3 22 . . . . . . . . . . . . . . . . . . . . . 10 . 8 Piercing 7 | . . . . . . . . . . . . . . . . . . . . . . . . . . . . . 7 Sneak Attacks 11 | . . . . . 9 . . . . . . . . . . . . . . . . . . . . . . . 2 Combat Hostiles . | . . . . . . . . . . . . . . . . . . . . . . . . . . . . . . Follow-up Attacks . | . . . . . . . . . . . . . . . . . . . . . . . . . . . . . . Damage Inflicted 80129 | 74 579 220 2594 1134 2770 3067 7352 2542 716 1572 1813 3099 1787 1252 2400 4384 3081 5485 3037 447 . 1966 4569 1207 9915 1710 6041 2156 3160 Guns 12459 | 74 579 220 2555 1134 871 . . . . . . . . . . . . . . . . . . . . . 5086 1940 . Cannons 64406 | . . . . . 752 3030 7295 2542 716 1572 1606 3099 1787 1252 2400 4384 3081 5241 3037 447 . 1966 4569 1133 9915 1710 441 150 2281 Explosions 476 | . . . . . . 28 . . . . 207 . . . . . . 241 . . . . . . . . . . . Melee 2540 | . . . . . 1147 . . . . . . . . . . . . . . . . . . . . . 514 . 879 Ramming 248 | . . . 39 . . 9 57 . . . . . . . . . . 3 . . . . . 74 . . . 66 . Kinetic 56140 | 36 253 121 2517 1134 871 2842 4714 2542 716 1572 1606 3099 . . 1678 . 3081 5241 3037 . . . . 1133 9242 1594 5286 1940 1885 Thermal 20368 | 38 326 99 38 . 752 216 1989 . . . 207 . 1787 1252 722 4384 . . . 447 . 1966 4569 . 673 116 241 150 396 Explosive 241 | . . . . . . . . . . . . . . . . . . 241 . . . . . . . . . . . Electromagnetic 592 | . . . . . . . 592 . . . . . . . . . . . . . . . . . . . . . . Impact . | . . . . . . . . . . . . . . . . . . . . . . . . . . . . . . Slashing 2078 | . . . . . 1147 . . . . . . . . . . . . . . . . . . . . . 514 . 417 Piercing 462 | . . . . . . . . . . . . . . . . . . . . . . . . . . . . . 462 Highest Corruption 46 | . . . . . . 1 . . . 2 1 1 1 . . . . 2 2 . . . . 1 . . 7 17 46 Average Corruption 7 | . . . . . . 1 . . . 1 1 1 1 . . . . 1 1 . . . . 1 . . 4 6 25 Corruption Purged 8 | . . . . . . 1 . . . . . . 1 . . . . . 2 . . . . . . . 4 . . Corruption Blocked . | . . . . . . . . . . . . . . . . . . . . . . . . . . . . . . Effects 95 | . . . . . . 1 . . . 1 . 6 1 . . . . 5 1 . . . . 2 . . 17 9 52 Message Errors 20 | . . . . . . . . . . . . . . . . . . 2 1 . . . . . . . 4 3 10 Matter Fused 21 | . . . . . . . . . . 1 . 1 . . . . . 1 . . . . . . . . 6 2 10 Heat Flow Errors 13 | . . . . . . . . . . . . 3 . . . . . 1 . . . . . . . . 2 . 7 Energy Discharges 13 | . . . . . . . . . . . . . . . . . . 1 . . . . . 2 . . 2 1 7 Parts Rejected 2 | . . . . . . . . . . . . . . . . . . . . . . . . . . . . 1 1 Parts Fused 1 | . . . . . . . . . . . . 1 . . . . . . . . . . . . . . . . . Data Loss (minor) 7 | . . . . . . . . . . . . 1 1 . . . . . . . . . . . . . 1 . 4 Data Loss (major) 2 | . . . . . . . . . . . . . . . . . . . . . . . . . . . . . 2 Misfires 1 | . . . . . . . . . . . . . . . . . . . . . . . . . . . . 1 . Alerts 3 | . . . . . . . . . . . . . . . . . . . . . . . . . . . . . 3 Misdirections 7 | . . . . . . . . . . . . . . . . . . . . . . . . . . . . . 7 Weapon Failures 5 | . . . . . . 1 . . . . . . . . . . . . . . . . . . . . 2 1 1 Overload Shots . | . . . . . . . . . . . . . . . . . . . . . . . . . . . . . . Overflow Damage 5037 | . . . 1 . 293 546 427 28 . 9 218 . 165 . 289 271 245 530 31 25 . . 269 135 1175 23 80 . 277 Projectiles 4704 | . . . . . 100 546 413 28 . 9 194 . 165 . 289 271 245 530 31 25 . . 269 131 1175 23 . . 260 Explosions 24 | . . . . . . . . . . . 24 . . . . . . . . . . . . . . . . . . Melee 309 | . . . 1 . 193 . 14 . . . . . . . . . . . . . . . . 4 . . 80 . 17 Knockbacks 126 | . . . 1 . . 8 24 12 4 3 5 . . . 4 . 17 13 5 . . . . 1 19 2 . . 8 Impact 2 | . . . 1 . . . 1 . . . . . . . . . . . . . . . . . . . . . . Kinetic 109 | . . . . . . 8 21 10 4 3 2 . . . 4 . 10 12 5 . . . . 1 19 2 . . 8 Secondary 15 | . . . . . . . 2 2 . . 3 . . . . . 7 1 . . . . . . . . . . . Self-Inflicted Damage 37 | . . . . . . 37 . . . . . . . . . . . . . . . . . . . . . . . Shots 1 | . . . . . . 1 . . . . . . . . . . . . . . . . . . . . . . . Rammed 11 | . . . 4 . . . 4 . . . . . . . . . . . . . . . . 1 . . . 2 . Targets Rammed 13 | . . . 4 . . 1 4 . . . . . . . . . . 1 . . . . . 1 . . . 2 . Kicked 2 | . . . . . . 1 . . . . . . . . . . . 1 . . . . . . . . . . . Crushed . | . . . . . . . . . . . . . . . . . . . . . . . . . . . . . . Highest Temperature 397 | 36 22 . 198 215 176 324 357 284 172 325 229 240 220 185 240 71 122 158 102 32 . 34 180 165 262 112 139 339 397 Average Temperature 76 | 21 8 . 40 59 55 103 147 117 78 128 99 58 84 80 91 32 42 43 39 30 . 30 49 50 79 41 29 174 157 Received Heat Transfer 2089 | . 186 42 324 135 207 282 264 . . 36 9 . . 18 33 16 104 13 24 . . 16 59 . 18 9 123 9 162 Effects 4 | . . . . 1 . . . . . . . . . . . . . . . . . . . . . . . . 3 Energy Bleed 2 | . . . . 1 . . . . . . . . . . . . . . . . . . . . . . . . 1 Interference 2 | . . . . . . . . . . . . . . . . . . . . . . . . . . . . . 2 Siege Activations . | . . . . . . . . . . . . . . . . . . . . . . . . . . . . . . Martial Activations . | . . . . . . . . . . . . . . . . . . . . . . . . . . . . . . Shielding Activations . | . . . . . . . . . . . . . . . . . . . . . . . . . . . . . . Robots Disrupted . | . . . . . . . . . . . . . . . . . . . . . . . . . . . . . . Combat Hostiles . | . . . . . . . . . . . . . . . . . . . . . . . . . . . . . . Robots Corrupted 4 | . . . . . . . 3 . . . 1 . . . . . . . . . . . . . . . . . . Combat Hostiles 3 | . . . . . . . 2 . . . 1 . . . . . . . . . . . . . . . . . . Parts Fried 13 | . . . . . . . 7 2 . . 2 . . . . 1 . . . . . . . . 1 . . . . Impact Corruptions 7 | . . . 1 . . . 1 . . . 3 . . . . . . 1 . . . . . 1 . . . . . Robots Melted 3 | . . . . . . . 2 . . . . . . . . 1 . . . . . . . . . . . . . Combat Hostiles 3 | . . . . . . . 2 . . . . . . . . 1 . . . . . . . . . . . . . Parts Melted 20 | . . 1 . . 1 . 14 . . . . . . . . 2 . . . . . . 2 . . . . . . Heat Transferred 11129 | 111 1184 370 111 . 111 149 1679 . . . 150 . 851 518 370 1935 . . . 222 . 925 2072 . 148 25 50 37 111 Parts Sabotaged . | . . . . . . . . . . . . . . . . . . . . . . . . . . . . . . Parts Stolen . | . . . . . . . . . . . . . . . . . . . . . . . . . . . . . . Parts Stripped . | . . . . . . . . . . . . . . . . . . . . . . . . . . . . . . Power Chain Reactions 1 | . . . . . . 1 . . . . . . . . . . . . . . . . . . . . . . . Alert | -11 -10 -10 -8 -8 -8 -6 -6 -6 -6 -6 -5 -5 -5 -5 -5 -5 -4 -4 -4 -4 -4 -3 -3 -3 -2 -2 -2 -1 -1 ------- Run | Yrd Mat Sub Mat Sto Rec Fac Ext Cet Arc Hub Fac Was Fac Upp Upp War Pro Fac Upp Upp Zhi Pro Res Qua Res Tes Frg Acc Com Maximum Alert Level 4 | . . . 1 1 . 2 4 3 2 3 3 1 2 . . . . 2 . . . . 2 1 3 2 2 3 2 Low Security (%) 43 | 100 100 . 56 71 100 37 . . . 12 . 48 44 . . . . 21 . . . . 79 . . . 51 . 27 Level 1 30 | . . . 43 28 . 42 75 . 21 27 16 51 19 . . . . 20 . . . . 13 100 32 . 39 53 54 Level 2 21 | . . . . . . 20 16 13 78 29 81 . 35 . . . . 57 . . . . 6 . 59 100 8 43 18 Level 3 4 | . . . . . . . 3 86 . 30 2 . . . . . . . . . . . . . 8 . . 3 . Level 4 . | . . . . . . . 4 . . . . . . . . . . . . . . . . . . . . . . Level 5 . | . . . . . . . . . . . . . . . . . . . . . . . . . . . . . . High Security . | . . . . . . . . . . . . . . . . . . . . . . . . . . . . . . Max Security . | . . . . . . . . . . . . . . . . . . . . . . . . . . . . . . Peak Influence 1180 | 5 178 . 378 290 137 463 1180 844 483 1008 714 249 477 . . . . 674 . . . . 491 379 838 551 517 715 462 Initial 655 | . . . . 88 67 174 203 655 279 137 455 249 74 . . . . 126 . . . . 150 267 205 468 276 307 457 Average 274 | 2 93 . 162 165 38 267 382 753 419 539 433 193 276 . . . . 413 . . . . 109 325 465 504 223 422 296 Influence Increases 15684 | 10 378 . 810 530 303 967 1982 397 254 1321 489 48 680 335 415 804 389 1114 200 40 . 85 860 269 1059 257 781 726 181 Destroy 0b10 Robot/C 7420 | . 200 . 520 240 180 360 940 160 80 260 160 . 180 140 240 600 300 480 180 40 . 60 380 80 660 100 560 300 20 Destroy 0b10 Robot/NC 600 | 10 5 . 25 25 45 30 90 10 10 55 55 . 35 . . 10 15 75 . . . 5 10 10 20 10 5 20 25 Destroy Leader 1268 | . 42 . 120 84 . 102 96 . . 68 22 . 58 30 30 . 20 132 20 . . 20 64 24 156 24 90 56 10 Allied During Kill 2117 | . . . . 106 . 24 582 170 90 323 . . 265 165 145 179 39 29 . . . . . . . . . . . Successful Hack 479 | . 9 . 21 13 14 11 122 9 . 5 82 . 26 . . . . 26 . . . . 26 48 13 . 40 14 . Select Force Hacks 120 | . 30 . 30 . 60 . . . . . . . . . . . . . . . . . . . . . . . . Disable Machine 1110 | . . . 30 60 . 105 30 . 60 390 45 . 45 . . . . 120 . . . . 30 75 15 30 45 15 15 Destroy Structure 1220 | . 2 . 4 2 4 50 47 48 14 205 110 48 56 . . . . 222 . . . . 80 32 150 33 41 51 21 Advance Influence 300 | . . . . . . 150 . . . . . . . . . . . . . . . . 150 . . . . . . Partial Spotted 135 | . . . . . . . . . . . . . 15 . . . . . . . . . . . 15 . . 30 75 Lose Combat Pursuer 915 | . 90 . 60 . . 135 75 . . 15 15 . . . . 15 15 30 . . . . 120 . 30 60 . 240 15 Influence Decreases 15586 | 10 295 83 600 566 418 609 1228 870 559 784 705 655 351 432 375 507 863 695 549 312 . 85 384 379 593 596 761 524 798 Entered New Map 5740 | . . 41 . 122 107 35 214 516 419 256 475 465 33 162 65 379 676 76 231 53 . . . 209 161 364 217 206 258 Time Decay 8031 | 10 295 42 450 254 301 514 604 334 120 198 230 190 198 230 270 88 142 559 318 239 . 85 384 170 422 222 514 238 410 Lost Part 250 | . . . . 10 10 . . . . . . . . . . . . . . . . . . . . . 30 70 130 Lost Ally 1115 | . . . . 180 . 60 260 20 20 180 . . 120 40 40 40 45 60 . 20 . . . . 10 10 . 10 . Purge Threat 450 | . . . 150 . . . 150 . . 150 . . . . . . . . . . . . . . . . . . . Squads Dispatched 58 | . 2 . 7 2 . 9 3 . . 3 . . 2 . . . 1 3 . . . . 3 5 . 4 6 4 4 Investigation 9 | . 2 . 3 . . 2 . . . . . . . . . . . . . . . . 1 . . . . 1 . Extermination 17 | . . . . . . 2 . . . . . . 1 . . . . 3 . . . . . 1 . 2 3 2 3 Reinforcement 18 | . . . 2 2 . 2 2 . . 3 . . . . . . . . . . . . 2 1 . 2 . 1 1 Assault 3 | . . . . . . . 1 . . . . . 1 . . . 1 . . . . . . . . . . . . Garrison 11 | . . . 2 . . 3 . . . . . . . . . . . . . . . . . 3 . . 3 . . Intercept . | . . . . . . . . . . . . . . . . . . . . . . . . . . . . . . Searches Triggered . | . . . . . . . . . . . . . . . . . . . . . . . . . . . . . . Construction Impeded 3 | . . . . 1 . 1 1 . . . . . . . . . . . . . . . . . . . . . . Haulers Reinforced 2 | . . . . . . . . . . . . . . . . . . . . . . . 1 1 . . . . . Active Scanning Responses . | . . . . . . . . . . . . . . . . . . . . . . . . . . . . . . Cargo Convoy Interrupts . | . . . . . . . . . . . . . . . . . . . . . . . . . . . . . . Stealth | -11 -10 -10 -8 -8 -8 -6 -6 -6 -6 -6 -5 -5 -5 -5 -5 -5 -4 -4 -4 -4 -4 -3 -3 -3 -2 -2 -2 -1 -1 --------- Run | Yrd Mat Sub Mat Sto Rec Fac Ext Cet Arc Hub Fac Was Fac Upp Upp War Pro Fac Upp Upp Zhi Pro Res Qua Res Tes Frg Acc Com Distress Signals 33 | . 2 . 4 1 1 . . 2 . 1 . . . . . . . 2 . . . 1 5 . 7 2 . 4 1 Communications Jammed 85 | . . . . . . . . . . 17 16 . . . . . . . . . . . . . 2 . 6 44 . Distress Signals 69 | . . . . . . . . . . 17 14 . . . . . . . . . . . . . 2 . 1 35 . Times Spotted 581 | . 18 4 39 27 8 25 53 8 6 25 13 6 11 8 11 37 17 31 9 2 . 4 39 5 51 14 36 47 27 Peak Tracking Total 10 | . 5 2 7 5 3 5 8 5 2 7 4 1 4 3 3 9 7 5 5 1 . 2 8 1 7 4 7 10 6 Tactical Retreats 42 | . 3 . 4 . . 7 4 . . 1 1 . . . . 1 1 2 . . . . 5 . 2 2 1 7 1 ECM-based Alert Blocks 3 | . . . . . . . . . . . . . . . . . . . . . . . . . . . 3 . . Traps | -11 -10 -10 -8 -8 -8 -6 -6 -6 -6 -6 -5 -5 -5 -5 -5 -5 -4 -4 -4 -4 -4 -3 -3 -3 -2 -2 -2 -1 -1 ------- Run | Yrd Mat Sub Mat Sto Rec Fac Ext Cet Arc Hub Fac Was Fac Upp Upp War Pro Fac Upp Upp Zhi Pro Res Qua Res Tes Frg Acc Com Traps Triggered 26 | . 1 1 . 1 . 4 2 . . 1 1 . . . . . . . . . . . . . . 3 7 4 1 Indirectly . | . . . . . . . . . . . . . . . . . . . . . . . . . . . . . . Trap Hack Attempts . | . . . . . . . . . . . . . . . . . . . . . . . . . . . . . . Triggered . | . . . . . . . . . . . . . . . . . . . . . . . . . . . . . . Disarmed . | . . . . . . . . . . . . . . . . . . . . . . . . . . . . . . Reprogrammed . | . . . . . . . . . . . . . . . . . . . . . . . . . . . . . . Reused 1 | . . 1 . . . . . . . . . . . . . . . . . . . . . . . . . . . Traps Extracted . | . . . . . . . . . . . . . . . . . . . . . . . . . . . . . . Installed 1 | . . 1 . . . . . . . . . . . . . . . . . . . . . . . . . . . Triggered . | . . . . . . . . . . . . . . . . . . . . . . . . . . . . . . Most Traps Carried 1 | . . 1 . . . . . . . . . . . . . . . . . . . . . . . . . . . Machines | -11 -10 -10 -8 -8 -8 -6 -6 -6 -6 -6 -5 -5 -5 -5 -5 -5 -4 -4 -4 -4 -4 -3 -3 -3 -2 -2 -2 -1 -1 ---------- Run | Yrd Mat Sub Mat Sto Rec Fac Ext Cet Arc Hub Fac Was Fac Upp Upp War Pro Fac Upp Upp Zhi Pro Res Qua Res Tes Frg Acc Com Machines Disabled 80 | . . . 2 4 . 7 2 . 4 26 3 . 3 . . 3 . 8 1 . . . 2 5 1 2 5 1 1 Max in Single Turn 4 | . . . 1 1 . 4 1 . 1 2 3 . 1 . . 1 . 3 1 . . . 1 1 1 1 1 1 1 Garrison Access 7 | . . . 1 . . 1 . . . 2 . . 1 . . . . 1 . . . . . . 1 . . . . Network Hub 1 | . . . . . . . . . . 1 . . . . . . . . . . . . . . . . . . . Machines Repaired . | . . . . . . . . . . . . . . . . . . . . . . . . . . . . . . Machines Dismantled . | . . . . . . . . . . . . . . . . . . . . . . . . . . . . . . Machines Sabotaged . | . . . . . . . . . . . . . . . . . . . . . . . . . . . . . . Overloaded Fab Kills . | . . . . . . . . . . . . . . . . . . . . . . . . . . . . . . Hacking | -11 -10 -10 -8 -8 -8 -6 -6 -6 -6 -6 -5 -5 -5 -5 -5 -5 -4 -4 -4 -4 -4 -3 -3 -3 -2 -2 -2 -1 -1 --------- Run | Yrd Mat Sub Mat Sto Rec Fac Ext Cet Arc Hub Fac Was Fac Upp Upp War Pro Fac Upp Upp Zhi Pro Res Qua Res Tes Frg Acc Com Machines Accessed 109 | . 4 . 12 2 10 9 15 1 . 6 8 . 7 . 1 . . 4 1 1 4 . 6 3 1 4 4 4 2 Terminals 68 | . 3 . 8 2 6 4 13 1 . 4 5 . 4 . . . . 2 . . . . 3 2 1 2 3 3 2 Fabricators 5 | . . . . . . 2 . . . . 2 . 1 . . . . . . . . . . . . . . . . Repair Stations 1 | . . . . . . . . . . . . . . . . . . . . . . . . 1 . . . . . Recycling Units 9 | . 1 . 1 . 3 1 2 . . . . . . . . . . 1 . . . . . . . . . . . Scanalyzers 8 | . . . 2 . . 1 . . . . 1 . 1 . . . . . . . . . 2 . . 1 . . . Garrison Access 10 | . . . 1 . . 1 . . . 2 . . 1 . . . . 1 . . . . 1 . . 1 1 1 . Total Hacks 280 | . 10 . 25 6 29 17 37 2 . 12 31 . 14 . 1 . . 18 1 1 17 . 14 11 4 7 10 11 2 Successful 139 | . 5 . 9 5 17 9 22 1 . 4 15 . 7 . 1 . . 5 1 1 17 . 6 3 2 1 4 3 1 Failed 138 | . 5 . 15 1 11 8 15 1 . 8 15 . 7 . . . . 13 . . . . 8 8 2 6 6 8 1 Catastrophic 34 | . . . 3 . 1 2 2 . . 3 2 . 2 . . . . 4 . . . . 4 3 . 2 2 3 1 Database Lockouts 3 | . . . 1 . 1 . . . . . 1 . . . . . . . . . . . . . . . . . . Manual 114 | . 7 . 18 3 18 4 15 1 . 4 15 . 6 . . . . 8 . . . . 5 . 4 1 3 . 2 Terminals 194 | . 9 . 20 6 22 8 29 2 . 9 23 . 10 . . . . 12 . . . . 8 8 4 3 9 10 2 Fabricators 9 | . . . . . . 4 . . . . 4 . 1 . . . . . . . . . . . . . . . . Repair Stations 3 | . . . . . . . . . . . . . . . . . . . . . . . . 3 . . . . . Recycling Units 22 | . 1 . 1 . 5 2 8 . . . . . . . . . . 5 . . . . . . . . . . . Scanalyzers 17 | . . . 3 . . 2 . . . . 4 . 2 . . . . . . . . . 3 . . 3 . . . Garrison Access 13 | . . . 1 . . 1 . . . 3 . . 1 . . . . 1 . . . . 3 . . 1 1 1 . Terminal Hacks 81 | . 2 . 3 3 11 1 16 1 . 1 6 . 3 . 1 . . 2 1 1 17 . 3 1 1 . 3 3 1 Record 5 | . . . . . . . . . . . . . . . . . . . . . 5 . . . . . . . . Part Schematic 6 | . . . . 1 . . . . . . . . 1 . . . . . . . 4 . . . . . . . . Robot Analysis 13 | . 1 . . . 1 . 5 . . . 2 . . . . . . . . . 4 . . . . . . . . Prototype ID Bank 18 | . 1 . 1 2 6 . 2 . . . 1 . . . . . . 1 . . 4 . . . . . . . . Open Door 16 | . . . . . . . 7 1 . . . . . . 1 . . . 1 1 . . 1 . . . . 3 1 Branch Access Points 7 | . . . 1 . . 1 . . . . 1 . 1 . . . . 1 . . . . 1 . 1 . . . . Terminal Index 1 | . . . . . . . . . . . . . . . . . . . . . . . . . . . 1 . . Recycling Unit Index 1 | . . . . . 1 . . . . . . . . . . . . . . . . . . . . . . . . Alert Level 5 | . . . . . 1 . 1 . . . 1 . . . . . . . . . . . 1 1 . . . . . Unreport Threat 3 | . . . 1 . . . 1 . . 1 . . . . . . . . . . . . . . . . . . . Hauler Manifests 1 | . . . . . . . . . . . . . 1 . . . . . . . . . . . . . . . . Registered Prototypes 1 | . . . . . . . . . . . 1 . . . . . . . . . . . . . . . . . . Zone Layout 1 | . . . . . . . . . . . . . . . . . . . . . . . . . . . 1 . . Proto ID Catalog 1 | . . . . . . . . . . . . . . . . . . . . . . . . . . . 1 . . Release Object 2 | . . . . . 2 . . . . . . . . . . . . . . . . . . . . . . . . Fabricator Hacks 4 | . . . . . . 2 . . . . 2 . . . . . . . . . . . . . . . . . . Network Status 3 | . . . . . . 1 . . . . 2 . . . . . . . . . . . . . . . . . . Build 1 | . . . . . . 1 . . . . . . . . . . . . . . . . . . . . . . . Repair Station Hacks 2 | . . . . . . . . . . . . . . . . . . . . . . . . 2 . . . . . Scan Component 1 | . . . . . . . . . . . . . . . . . . . . . . . . 1 . . . . . Repair 1 | . . . . . . . . . . . . . . . . . . . . . . . . 1 . . . . . Recycling Unit Hacks 5 | . . . . . . 2 2 . . . . . . . . . . 1 . . . . . . . . . . . Retrieve Matter 1 | . . . . . . 1 . . . . . . . . . . . . . . . . . . . . . . . Retrieve Components 4 | . . . . . . 1 2 . . . . . . . . . . 1 . . . . . . . . . . . Scanalyzer 11 | . . . 2 . . 2 . . . . 3 . 2 . . . . . . . . . 1 . . 1 . . . Insert Component 6 | . . . . . . 1 . . . . 2 . 1 . . . . . . . . . 1 . . 1 . . . Analyze 3 | . . . . . . 1 . . . . 1 . 1 . . . . . . . . . . . . . . . . Retrieve Study 2 | . . . 2 . . . . . . . . . . . . . . . . . . . . . . . . . . Garrison Access Hacks 6 | . . . 1 . . 1 . . . 2 . . 1 . . . . 1 . . . . . . . . . . . Seal Access 6 | . . . 1 . . 1 . . . 2 . . 1 . . . . 1 . . . . . . . . . . . Unauthorized Hacks 30 | . 3 . 3 2 6 1 4 . . 1 4 . 1 . . . . 1 . . . . 2 . 1 . 1 . . Terminals 22 | . 2 . 2 2 3 1 2 . . 1 3 . 1 . . . . 1 . . . . 2 . 1 . 1 . . Assimilate 2 | . . . . . . . . . . . 1 . . . . . . . . . . . . . 1 . . . . Botnet 19 | . 2 . 2 1 3 1 2 . . 1 2 . 1 . . . . 1 . . . . 2 . . . 1 . . Operators 1 | . . . . 1 . . . . . . . . . . . . . . . . . . . . . . . . . Fabricators 1 | . . . . . . . . . . . 1 . . . . . . . . . . . . . . . . . . Haulers 1 | . . . . . . . . . . . 1 . . . . . . . . . . . . . . . . . . Repair Stations . | . . . . . . . . . . . . . . . . . . . . . . . . . . . . . . Recycling Units 7 | . 1 . 1 . 3 . 2 . . . . . . . . . . . . . . . . . . . . . . Reject 2 | . . . . . 1 . 1 . . . . . . . . . . . . . . . . . . . . . . Mask 1 | . . . . . . . 1 . . . . . . . . . . . . . . . . . . . . . . Tunnel 4 | . 1 . 1 . 2 . . . . . . . . . . . . . . . . . . . . . . . . Scanalyzers . | . . . . . . . . . . . . . . . . . . . . . . . . . . . . . . Garrison Access . | . . . . . . . . . . . . . . . . . . . . . . . . . . . . . . Data Cores Recovered 2 | . . . . 1 . . . . . . . . . . . . . . . . . . . . . . . . 1 Used 1 | . . . . 1 . . . . . . . . . . . . . . . . . . . . . . . . . Hacking Detections 69 | . 3 . 8 2 7 7 9 1 . 4 4 . 4 . . . . 2 . . . . 4 3 . 4 3 3 1 Full Trace Events 1 | . . . . . 1 . . . . . . . . . . . . . . . . . . . . . . . . Feedback Events . | . . . . . . . . . . . . . . . . . . . . . . . . . . . . . . Feedback Blocked . | . . . . . . . . . . . . . . . . . . . . . . . . . . . . . . Robot Schematics Acquired . | . . . . . . . . . . . . . . . . . . . . . . . . . . . . . . Robots Built 4 | . . . . . . 4 . . . . . . . . . . . . . . . . . . . . . . . Authchips . | . . . . . . . . . . . . . . . . . . . . . . . . . . . . . . Time 134 | . . . . . . 134 . . . . . . . . . . . . . . . . . . . . . . . Total Robot Build Rating 16 | . . . . . . 16 . . . . . . . . . . . . . . . . . . . . . . . Part Schematics Acquired 8 | . . . . 1 . . . . . . 1 . 2 . . . . . . . 4 . . . . . . . . Parts Built . | . . . . . . . . . . . . . . . . . . . . . . . . . . . . . . Authchips . | . . . . . . . . . . . . . . . . . . . . . . . . . . . . . . Time . | . . . . . . . . . . . . . . . . . . . . . . . . . . . . . . Total Part Build Rating . | . . . . . . . . . . . . . . . . . . . . . . . . . . . . . . Part Studies Acquired 2 | . . . 2 . . . . . . . . . . . . . . . . . . . . . . . . . . Parts Repaired 1 | . . . . . . . . . . . . . . . . . . . . . . . . 1 . . . . . Time 18 | . . . . . . . . . . . . . . . . . . . . . . . . 18 . . . . . Parts Recycled . | . . . . . . . . . . . . . . . . . . . . . . . . . . . . . . Recycled Matter . | . . . . . . . . . . . . . . . . . . . . . . . . . . . . . . Retrieved Matter . | . . . . . . . . . . . . . . . . . . . . . . . . . . . . . . Retrieved Components 11 | . . . . . . . 11 . . . . . . . . . . . . . . . . . . . . . . Parts Scanalyzed 3 | . . . . . . 1 . . . . 1 . 1 . . . . . . . . . . . . . . . . Part Schematics Acquired 2 | . . . . . . . . . . . 1 . 1 . . . . . . . . . . . . . . . . Parts Damaged 1 | . . . . . . . . . . . 1 . . . . . . . . . . . . . . . . . . Bothacking | -11 -10 -10 -8 -8 -8 -6 -6 -6 -6 -6 -5 -5 -5 -5 -5 -5 -4 -4 -4 -4 -4 -3 -3 -3 -2 -2 -2 -1 -1 ------------ Run | Yrd Mat Sub Mat Sto Rec Fac Ext Cet Arc Hub Fac Was Fac Upp Upp War Pro Fac Upp Upp Zhi Pro Res Qua Res Tes Frg Acc Com Used RIF Installer . | . . . . . . . . . . . . . . . . . . . . . . . . . . . . . . Robots Hacked 1 | . . . . . . . . . . . . . . . . . . . . . . . . . . . . . 1 Non-combat . | . . . . . . . . . . . . . . . . . . . . . . . . . . . . . . Combat 1 | . . . . . . . . . . . . . . . . . . . . . . . . . . . . . 1 Robot Hacks Applied 1 | . . . . . . . . . . . . . . . . . . . . . . . . . . . . . 1 parse_system 1 | . . . . . . . . . . . . . . . . . . . . . . . . . . . . . 1 Relay Couplers Released 6 | . . . . . . . . . . . . . . . . . . 4 . . . . . . 2 . . . . Machine Destruction 2 | . . . . . . . . . . . . . . . . . . . . . . . . . 2 . . . . Programmers 4 | . . . . . . . . . . . . . . . . . . 4 . . . . . . . . . . . Fabnet Peak Effective % . | . . . . . . . . . . . . . . . . . . . . . . . . . . . . . . Robots Rewired 29 | . . . . . . . 21 . . . . . . . . 5 2 . 1 . . . . . . . . . . Allies Hacked 3 | . . . . . . . . . . . . . 1 . 1 1 . . . . . . . . . . . . . Hacks Repelled . | . . . . . . . . . . . . . . . . . . . . . . . . . . . . . . Allies | -11 -10 -10 -8 -8 -8 -6 -6 -6 -6 -6 -5 -5 -5 -5 -5 -5 -4 -4 -4 -4 -4 -3 -3 -3 -2 -2 -2 -1 -1 -------- Run | Yrd Mat Sub Mat Sto Rec Fac Ext Cet Arc Hub Fac Was Fac Upp Upp War Pro Fac Upp Upp Zhi Pro Res Qua Res Tes Frg Acc Com Total Allies 80 | . . . . 10 . 4 32 5 . . 1 19 . . . 5 2 . 1 . . . . . 1 . . . . Largest Group 22 | . . . . 10 . 4 18 22 17 15 1 20 20 13 11 8 5 4 1 1 . . . . 1 . . . . Highest-Rated Group 1145 | . . . . 173 . 48 703 1145 878 801 10 694 694 462 371 382 251 188 47 47 . . . . 10 . . . . Highest-Rated Ally 159 | . . . . 29 . 12 159 159 96 96 10 50 50 50 50 64 64 64 47 47 . . . . 10 . . . . Total Orders 3 | . . . . . . . . . . . . . . . . . . . . . . . 1 . 1 1 . . . RETURN 3 | . . . . . . . . . . . . . . . . . . . . . . . 1 . 1 1 . . . Ally Attacks 617 | . . . . 72 . 25 152 30 19 86 . . 81 43 47 45 7 8 . 2 . . . . . . . . . Total Damage 13866 | . . . . 803 . 268 2674 594 536 3325 . . 1725 976 944 1460 254 227 . 80 . . . . . . . . . Kills 100 | . . . . 14 . 4 17 4 3 22 . . 12 5 5 11 2 1 . . . . . . . . . . . Allies Corrupted 9 | . . . . . . . 1 . . 4 . . 2 . 1 1 . . . . . . . . . . . . . Allies Melted 3 | . . . . . . . 1 . . . . . . . . . . 1 . . . . . . 1 . . . . Intel | -11 -10 -10 -8 -8 -8 -6 -6 -6 -6 -6 -5 -5 -5 -5 -5 -5 -4 -4 -4 -4 -4 -3 -3 -3 -2 -2 -2 -1 -1 ------- Run | Yrd Mat Sub Mat Sto Rec Fac Ext Cet Arc Hub Fac Was Fac Upp Upp War Pro Fac Upp Upp Zhi Pro Res Qua Res Tes Frg Acc Com Active Infowar (turns) 15875 | 19 493 1372 604 100 . 793 9 . . 389 496 386 416 470 555 379 259 1020 388 523 289 212 1936 355 1037 462 1406 509 998 Optics 4412 | . . . . . . . . . . . . . . . . . . . . . . . . . 1037 462 1406 509 998 Sensors 11279 | . . . . . . . . . . . 488 92 416 470 555 379 259 1020 388 523 289 212 1896 347 1037 308 1406 509 685 Seismic 3128 | 19 493 1372 604 100 . 540 . . . . . . . . . . . . . . . . . . . . . . . Cloaking 906 | . . . . . . . . . . . . . . . . . . . . . . . . . . . 906 . . Jamming 7153 | . . . . . . 319 9 . . 389 445 386 145 . . . . . . . . . 1698 355 573 360 1406 464 604 ECM 77 | . . . . . . . . . . . . . . . . . . . . . . . . . . . 77 . . Robot Analysis Total 13 | . 1 . . . 1 . 5 . . . 2 . . . . . . . . . 4 . . . . . . . . Derelict Logs Recovered 8 | . . . . . . . . . . . . . . 2 . . 3 . 2 1 . . . . . . . . . Drone Launches 11 | . . . . . . . . . . . . . . . . . . . . . . . 1 1 1 3 1 4 . Drone Recoveries 9 | . . . . . . . . . . . . . . . . . . . . . . . 1 . 2 2 1 3 . Exploration | -11 -10 -10 -8 -8 -8 -6 -6 -6 -6 -6 -5 -5 -5 -5 -5 -5 -4 -4 -4 -4 -4 -3 -3 -3 -2 -2 -2 -1 -1 ------------- Run | Yrd Mat Sub Mat Sto Rec Fac Ext Cet Arc Hub Fac Was Fac Upp Upp War Pro Fac Upp Upp Zhi Pro Res Qua Res Tes Frg Acc Com Turns Passed 25675 | 48 806 1427 1469 559 2682 1400 1945 757 246 413 497 386 416 484 583 682 347 1644 714 883 289 295 1936 355 1037 462 1406 509 998 Spaces Moved 20023 | 15 244 832 827 277 1264 962 1029 382 117 435 491 414 571 799 810 663 611 929 438 508 166 221 1384 445 1366 700 1304 682 1137 Core . | . . . . . . . . . . . . . . . . . . . . . . . . . . . . . . Treads 7502 | 15 244 832 656 277 904 204 526 28 . 253 491 211 . . . . . . . . . . 112 445 433 . 52 682 1137 Legs 2802 | . . . . . 200 594 . . . . . . . . . 259 . 812 14 . 70 221 632 . . . . . . Wheels 196 | . . . 171 . 25 . . . . . . . . . . . . . . . . . . . . . . . . Hover 2859 | . . . . . 135 . 246 64 117 182 . 203 388 . . . . . 424 508 96 . 496 . . . . . . Flight 6664 | . . . . . . 164 257 290 . . . . 183 799 810 404 611 117 . . . . 144 . 933 700 1252 . . Fastest Speed 34 | 160 160 160 100 151 94 85 85 57 79 79 79 55 43 43 43 34 34 34 134 170 113 113 54 54 54 54 54 54 54 Average Speed 91 | 160 160 160 143 151 139 110 94 74 117 79 79 59 51 43 56 48 34 158 142 170 145 113 115 54 54 54 54 54 54 Slowest Speed 240 | 160 160 240 156 151 216 193 124 132 132 79 79 79 55 43 82 73 34 214 214 170 170 113 145 54 54 54 54 54 54 Overloaded Moves . | . . . . . . . . . . . . . . . . . . . . . . . . . . . . . . Propulsion Burnouts . | . . . . . . . . . . . . . . . . . . . . . . . . . . . . . . Robots Hopped 21 | . . . . . . . . . . . . . 1 . . . . . . . . . . . 9 7 4 . . Potential Cave-ins . | . . . . . . . . . . . . . . . . . . . . . . . . . . . . . . Cave-ins Triggered . | . . . . . . . . . . . . . . . . . . . . . . . . . . . . . . Teleports 1 | . . . . . . . . . . . . . . . . . . . . . . . . . . . 1 . . Exploration Rate (%) 56 | 2 43 51 73 50 99 24 90 67 84 45 16 95 19 96 98 73 65 29 69 80 60 48 51 54 44 75 29 24 29 Regions Visited 29 Branch Regions 19 Pre-discovered Areas 8 | . 1 . 1 . 2 . . . . . . . . . . . 1 . . . 3 . . . . . . . . Known Exits Taken 18 | . . . 1 . . 1 . . . . . . 1 1 1 1 1 1 1 1 1 1 1 1 1 1 1 1 . Unknown Exits Taken 9 | 1 1 1 . 1 1 . 1 1 1 1 . . . . . . . . . . . . . . . . . . . Scrap Searched 25 | . . 3 . . . . . . . . . . . 3 4 . 5 . 4 5 . 1 . . . . . . . Spaces Dug 79 | . . . . 1 2 8 1 . . . 4 . 3 . 6 . 9 8 4 3 . . 14 8 . 2 5 . 1 Terrain Destroyed 753 | . . . . 1 3 64 33 60 23 26 72 27 13 10 13 28 38 125 31 6 . 20 44 17 51 11 11 20 6 Melee 3 | . . . . 1 1 . . . . . . . . . . . . . . . . . . . . . . . 1 Projectile 655 | . . . . . 2 42 33 60 23 26 36 27 13 10 13 28 38 88 31 6 . 20 44 17 51 11 11 20 5 AOE 95 | . . . . . . 22 . . . . 36 . . . . . . 37 . . . . . . . . . . . Terrain Rammed . | . . . . . . . . . . . . . . . . . . . . . . . . . . . . . . Walls Destroyed . | . . . . . . . . . . . . . . . . . . . . . . . . . . . . . . Machines Disabled . | . . . . . . . . . . . . . . . . . . . . . . . . . . . . . . Actions | -11 -10 -10 -8 -8 -8 -6 -6 -6 -6 -6 -5 -5 -5 -5 -5 -5 -4 -4 -4 -4 -4 -3 -3 -3 -2 -2 -2 -1 -1 --------- Run | Yrd Mat Sub Mat Sto Rec Fac Ext Cet Arc Hub Fac Was Fac Upp Upp War Pro Fac Upp Upp Zhi Pro Res Qua Res Tes Frg Acc Com Total 26269 | 26 588 897 1036 361 2104 1259 1945 836 219 492 589 537 681 930 921 988 720 1050 506 524 212 250 1686 537 1574 751 1815 769 1466 Wait 4258 | 3 297 29 56 27 701 190 613 391 90 33 67 94 85 120 90 239 72 39 24 2 32 11 215 59 108 20 285 20 246 Move 19958 | 14 243 831 826 276 1263 961 1028 381 116 434 491 413 568 798 809 662 610 928 437 507 165 220 1383 444 1351 687 1295 681 1136 Hop 15 | . . . . . . . . . . . . . 1 . . . . . . . . . . . 5 5 4 . . Pick Up 225 | . 3 7 26 1 16 23 22 11 1 6 7 6 7 . 2 8 . 10 5 6 4 . 19 3 5 2 12 . 13 Fast Attach 25 | 1 . 1 3 . 1 2 . 1 . . . . . . . . . . . . 1 . . . . 1 6 2 6 Attach 43 | . . . 4 2 3 5 . 2 . . 1 . . . . 1 . 1 . . 1 . 2 . 1 . 7 6 7 Detach 20 | . . . . . 9 2 . 2 . . . . . . . 1 . . . . . . . . . . 4 1 1 Swap 176 | 2 10 7 14 10 4 7 4 8 . 2 5 2 2 2 4 5 7 6 7 3 5 4 7 4 8 8 19 4 6 Drop 216 | . 1 3 29 1 34 19 22 13 3 3 5 5 4 1 2 6 . 9 6 2 4 . 18 2 6 3 10 1 4 Fire 1044 | 6 34 18 74 41 44 49 70 27 9 14 13 17 14 9 14 36 28 56 25 4 . 15 42 24 90 25 163 52 31 Melee 50 | . . . . 3 22 . . . . . . . . . . . . . . . . . . . . . 10 . 15 Ram . | . . . . . . . . . . . . . . . . . . . . . . . . . . . . . . Kick 2 | . . . . . . 1 . . . . . . . . . . . 1 . . . . . . . . . . . Crush 11 | . . . 4 . . . 4 . . . . . . . . . . . . . . . . 1 . . . 2 . Escape Stasis 15 | . . . . . . . 15 . . . . . . . . . . . . . . . . . . . . . . Rewire 210 | . . . . . 7 . 167 . . . . . . . . 30 3 . 2 . . . . . . . . . 1 Trap 1 | . . 1 . . . . . . . . . . . . . . . . . . . . . . . . . . . Miscellaneous . | . . . . . . . . . . . . . . . . . . . . . . . . . . . . . . Route ------- -11/Scrapyard -10/Materials (discovered 3 exits: [*Mat] / [*Min] / [*Sub]) -10/Subcaves -8/Materials (discovered 4 exits: [*Fac x3] / *Sto) -8/Storage -8/Recycling -6/Factory (discovered 5 exits: *Fac / Low x2 / *Ext x2) -6/Extension (discovered 2 exits: *Fac / *Cet) -6/Cetus (discovered 2 exits: *Fac / [*Arc]) -6/Archives (discovered 3 exits: *Fac / *Hub x2) -6/Hub_04(d) -5/Factory (discovered 2 exits: *Upp x2) -5/Waste -5/Factory (discovered 4 exits: *Fac x2 / *Upp x2) -5/Upper Caves -5/Upper Caves (discovered 2 exits: *Fac / *War) -5/Warlord -4/Proximity Caves -4/Factory (discovered 4 exits: *Res x2 / *Upp x2) -4/Upper Caves -4/Upper Caves (discovered 2 exits: *Res / *Zhi) -4/Zhirov -3/Proximity Caves -3/Research (discovered 4 exits: *Res / *Arm / *Qua x2) -3/Quarantine -2/Research (discovered 4 exits: *Acc x2 / *Tes x2) -2/Testing (discovered 2 exits: *Sec / *Frg) -2/Protoforge -1/Access (discovered 2 exits: Sur / *Com) -1/Command To Epsilon Eridani History --------- Turn | Location | Event 26 | -11/Scrapyard | Discovered new exit (range 1) 49 | -11/Scrapyard | Entered Materials 227 | -10/Materials | Discovered new exit (range 6) 317 | -10/Materials | Build established: Mutant 630 | -10/Materials | Discovered new exit (range 4) 833 | -10/Materials | Discovered new exit (range 8) 855 | -10/Materials | Entered Subcaves 1127 | -10/Subcaves | Shifting Twisted Machinery released Sub. Machine Gun 1131 | -10/Subcaves | Shifting Twisted Machinery released Battle Rifle 1300 | -10/Subcaves | A swath of the cavern ceiling suddenly collapsed 2134 | -10/Subcaves | Discovered new exit (range 15) 2282 | -10/Subcaves | Entered Materials 2282 | -8/Materials | Evolved 4 slots: Propulsion x2, Utility x1, Weapon x1 2502 | -8/Materials | Met 7R-MNS 2629 | -8/Materials | Discovered new exit (range 15) 2728 | -8/Materials | Build established: Tank 2972 | -8/Materials | Discovered new exit (range 5) 3005 | -8/Materials | Garrison activated, responded to threat 3163 | -8/Materials | Destroyed 7 combat bots 3198 | -8/Materials | Identified exit to Storage 3249 | -8/Materials | Discovered new exit (range 12) 3691 | -8/Materials | Central database locked down 3751 | -8/Materials | Entered Storage 4047 | -8/Storage | Assisted by bots powering up and referring to "LRC-V3" 4106 | -8/Storage | Met 01-MTF 4224 | -8/Storage | Assembled infested ambush trap array 4301 | -8/Storage | Lost 10 allies 4307 | -8/Storage | Used back door to open Recycling access 4307 | -8/Storage | Discovered new exit (range 3) 4310 | -8/Storage | Entered Recycling 4784 | -8/Recycling | Discovered new exit (range 5) 5309 | -8/Recycling | Entered Scraplab 5322 | -8/Recycling | Found Prototype Device 5322 | -8/Recycling | Identified Scrap Engine 5757 | -8/Recycling | Build established: Construct 6992 | -8/Recycling | Entered Factory 6992 | -6/Factory | Evolved 4 slots: Utility x3, Weapon x1 7134 | -6/Factory | Fabricated S-27 Virus? 7294 | -6/Factory | Lost 3 allies 7803 | -6/Factory | Identified exit to Lower Caves 7803 | -6/Factory | Identified exit to Extension 8035 | -6/Factory | Discovered new exit (range 4) 8392 | -6/Factory | Entered Extension 8942 | -6/Extension | Build established: Commander-Construct 9056 | -6/Extension | Rescued a captive Derelict 9057 | -6/Extension | Rescued a captive Derelict 9086 | -6/Extension | Rescued a captive Derelict 9087 | -6/Extension | Rescued a captive Derelict 9499 | -6/Extension | Spotted B-75 Beast 9519 | -6/Extension | Destroyed B-75 Beast 9534 | -6/Extension | Spotted B-75 Beast 9540 | -6/Extension | Destroyed B-75 Beast 9571 | -6/Extension | Lost 9 allies 9692 | -6/Extension | Disrupted transfer network 9829 | -6/Extension | Build established: Construct 9990 | -6/Extension | Rescued a captive Derelict 9990 | -6/Extension | Rescued a captive Derelict 9998 | -6/Extension | Rescued a captive Derelict 10142 | -6/Extension | First assault squad dispatched 10144 | -6/Extension | Rescued a captive Derelict 10145 | -6/Extension | Rescued a captive Derelict 10167 | -6/Extension | Rescued A7 10214 | -6/Extension | Build established: Commander-Construct 10227 | -6/Extension | Rescued a captive Derelict 10228 | -6/Extension | Rescued a captive Derelict 10247 | -6/Extension | Disrupted transfer network 10266 | -6/Extension | Discovered new exit (range 10) 10267 | -6/Extension | Discovered new exit (range 6) 10337 | -6/Extension | Entered Cetus 10337 | -6/Cetus | Accompanied by 18 allies (A7) 10342 | -6/Cetus | Acquired a Cetus Manufacturing Module code from A7 10354 | -6/Cetus | Spotted Cetus Guard 10358 | -6/Cetus | Destroyed Cetus Guard 10360 | -6/Cetus | Spotted Cetus Guard 10364 | -6/Cetus | Allies destroyed Cetus Guard 10367 | -6/Cetus | Spotted Cetus Guard 10375 | -6/Cetus | Allies destroyed Cetus Guard 10535 | -6/Cetus | Started Cetus Manufacturing Module 10552 | -6/Cetus | Escorted A7 to Cetus Mainframe 10560 | -6/Cetus | Manufactured an Enhanced Grunt 10585 | -6/Cetus | Manufactured an Enhanced Grunt 10610 | -6/Cetus | Manufactured an Enhanced Grunt 10615 | -6/Cetus | Discovered new exit (range 16) 10635 | -6/Cetus | Manufactured an Enhanced Grunt 10660 | -6/Cetus | Manufactured an Enhanced Grunt 10673 | -6/Cetus | Spotted Cetus Guard 10673 | -6/Cetus | Spotted Cetus Guard 10677 | -6/Cetus | Destroyed Cetus Guard 10679 | -6/Cetus | Destroyed Cetus Guard 10679 | -6/Cetus | Spotted Cetus Guard 10684 | -6/Cetus | Spotted Cetus Guard 10690 | -6/Cetus | Destroyed Cetus Guard 10696 | -6/Cetus | Destroyed Cetus Guard 10700 | -6/Cetus | Discovered new exit (range 15) 10703 | -6/Cetus | Met Revision 17 10825 | -6/Cetus | Murdered A7 10827 | -6/Cetus | Extracted ID and sensor layout for unrecognized location from A7's data core 10848 | -6/Cetus | Found Prototype Protection 10848 | -6/Cetus | Identified Med. Regenerative Plating 11087 | -6/Cetus | Security sweep announced 11094 | -6/Cetus | Entered Archives 11094 | -6/Archives | Accompanied by 17 allies 11152 | -6/Archives | Discovered new exit (range 16) 11169 | -6/Archives | Discovered new exit (range 15) 11193 | -6/Archives | Discovered new exit (range 14) 11340 | -6/Archives | Entered Hub_04(d) 11340 | -6/Hub_04(d) | Accompanied by 15 allies 11427 | -6/Hub_04(d) | Lost 6 allies 11504 | -6/Hub_04(d) | Spotted B-75 Beast 11528 | -6/Hub_04(d) | Allies destroyed B-75 Beast 11529 | -6/Hub_04(d) | Disrupted transfer network 11628 | -6/Hub_04(d) | Network Hub disabled 11660 | -6/Hub_04(d) | Lost 3 allies 11681 | -6/Hub_04(d) | Spotted Lightning 11681 | -6/Hub_04(d) | Spotted Lightning 11681 | -6/Hub_04(d) | Spotted Lightning 11740 | -6/Hub_04(d) | Discovered new exit (range 7) 11753 | -6/Hub_04(d) | Entered Factory 11753 | -5/Factory | Evolved 2 slots: Power x1, Utility x1 11904 | -5/Factory | Identified exit to Upper Caves 11999 | -5/Factory | Build established: Construct 12022 | -5/Factory | Watched by a mysterious "MATRIX" hacker. 12083 | -5/Factory | Central database locked down 12148 | -5/Factory | Spotted B-75 Beast 12250 | -5/Factory | Sucked down chute 12250 | -5/Factory | Entered Waste 12260 | -5/Waste | Destroyed 7 combat bots 12263 | -5/Waste | Spotted C-40 Crusher 12265 | -5/Waste | 1 allies followed down the chute 12275 | -5/Waste | Destroyed C-40 Crusher 12330 | -5/Waste | Spotted C-40 Crusher 12335 | -5/Waste | Destroyed C-40 Crusher 12346 | -5/Waste | Spotted C-40 Crusher 12351 | -5/Waste | Destroyed C-40 Crusher 12355 | -5/Waste | Spotted C-40 Crusher 12363 | -5/Waste | Destroyed C-40 Crusher 12373 | -5/Waste | Spotted C-40 Crusher 12375 | -5/Waste | Destroyed C-40 Crusher 12387 | -5/Waste | Spotted C-40 Crusher 12393 | -5/Waste | Destroyed C-40 Crusher 12397 | -5/Waste | Discovered new exit (range 13) 12465 | -5/Waste | Warlord forces began an assault 12553 | -5/Waste | Identified exit to Factory 12636 | -5/Waste | Entered Factory 12636 | -5/Factory | Accompanied by 20 allies 12646 | -5/Factory | Discovered new exit (range 6) 12649 | -5/Factory | Identified exit to Factory 12868 | -5/Factory | Discovered exit to Factory (range 14) 12936 | -5/Factory | First assault squad dispatched 13052 | -5/Factory | Entered Upper Caves 13052 | -5/Upper Caves | Accompanied by 13 allies 13052 | -5/Upper Caves | Spotted B-75 Beast 13059 | -5/Upper Caves | Allies destroyed B-75 Beast 13075 | -5/Upper Caves | Encountered a Warlord checkpoint 13318 | -5/Upper Caves | Learned Factory security intel 13321 | -5/Upper Caves | Learned location of 1 exit from Factory 13395 | -5/Upper Caves | Attracted the attention of an 0b10 checkpoint 13474 | -5/Upper Caves | Discovered new exit (range 10) 13480 | -5/Upper Caves | Identified exit to Upper Caves 13536 | -5/Upper Caves | Entered another Upper Caves area 13536 | -5/Upper Caves | Accompanied by 11 allies 13544 | -5/Upper Caves | Attracted the attention of an 0b10 checkpoint 13575 | -5/Upper Caves | Discovered exit to Factory (range 3) 13622 | -5/Upper Caves | Spotted B-75 Beast 13638 | -5/Upper Caves | Allies destroyed B-75 Beast 13663 | -5/Upper Caves | Lost 3 allies 13715 | -5/Upper Caves | Found DCF Scrap (14 items) 13869 | -5/Upper Caves | Lost 3 allies 13943 | -5/Upper Caves | Encountered a Warlord checkpoint 13993 | -5/Upper Caves | Discovered new exit (range 10) 14046 | -5/Upper Caves | Identified exit to Warlord 14119 | -5/Upper Caves | Entered Warlord 14119 | -5/Warlord | Accompanied by 4 allies 14200 | -5/Warlord | Received a Watcher feed algorithm from an ecstatic Tinkerer 14350 | -5/Warlord | Found Prototype Device 14350 | -5/Warlord | Identified Minesniffer Drone Bay 14387 | -5/Warlord | Found Prototype Hackware 14417 | -5/Warlord | Met Warlord 14442 | -5/Warlord | Warlord's base attacked by MAIN.C 14590 | -5/Warlord | P-80 Master assimilated allied PP-7VL(g) 14595 | -5/Warlord | Build established: Commander-Construct 14620 | -5/Warlord | Destroyed 7 combat bots 14650 | -5/Warlord | Warlord forces counterattacked 14718 | -5/Warlord | Destroyed 8 combat bots 14741 | -5/Warlord | Discovered new exit (range 14) 14742 | -5/Warlord | Spotted B-86 Titan 14749 | -5/Warlord | Spotted Striker 14750 | -5/Warlord | Destroyed Striker 14763 | -5/Warlord | Destroyed B-86 Titan 14775 | -5/Warlord | Identified exit to Proximity Caves 14801 | -5/Warlord | Entered Proximity Caves 14801 | -4/Proximity Caves | Accompanied by 5 allies 14890 | -4/Proximity Caves | Attracted the attention of an 0b10 outpost 14922 | -4/Proximity Caves | Lost 3 allies 14928 | -4/Proximity Caves | Destroyed 8 combat bots 15044 | -4/Proximity Caves | Discovered exit to Factory (range 4) 15053 | -4/Proximity Caves | Learned Research stockpile data 15058 | -4/Proximity Caves | Learned Research emergency access door positions 15066 | -4/Proximity Caves | Learned location of Armory (-3) 15148 | -4/Proximity Caves | Entered Factory 15148 | -4/Factory | Accompanied by 4 allies 15148 | -4/Factory | Evolved 2 slots: Propulsion x1, Utility x1 15149 | -4/Factory | Identified exit to Research 15184 | -4/Factory | Identified Ghost Barrier 15397 | -4/Factory | Spotted B-86 Titan 15441 | -4/Factory | Lost 3 allies 15456 | -4/Factory | Spotted B-86 Titan 15465 | -4/Factory | Destroyed B-86 Titan 15474 | -4/Factory | Build established: Hacker-Construct 15925 | -4/Factory | Build established: Construct 16150 | -4/Factory | Discovered exit to Research (range 16) 16329 | -4/Factory | Identified exit to Upper Caves 16792 | -4/Factory | Entered Upper Caves 16871 | -4/Upper Caves | Learned Research emergency access door positions 17098 | -4/Upper Caves | Spotted B-86 Titan 17120 | -4/Upper Caves | Destroyed B-86 Titan 17367 | -4/Upper Caves | Attracted the attention of an 0b10 outpost 17443 | -4/Upper Caves | Learned Research trap positions 17452 | -4/Upper Caves | Discovered new exit (range 5) 17475 | -4/Upper Caves | Identified exit to Upper Caves 17506 | -4/Upper Caves | Entered another Upper Caves area 17506 | -4/Upper Caves | Accompanied by 1 ally 17629 | -4/Upper Caves | Discovered exit to Research (range 8) 17794 | -4/Upper Caves | Learned Research emergency access door positions 18005 | -4/Upper Caves | Attracted the attention of an 0b10 checkpoint 18177 | -4/Upper Caves | Discovered new exit (range 14) 18388 | -4/Upper Caves | Identified exit to Zhirov 18389 | -4/Upper Caves | Entered Zhirov 18389 | -4/Zhirov | Discovered new exit (range 3) 18420 | -4/Zhirov | Met Zhirov 18451 | -4/Zhirov | Learned location of Testing (-2) 18451 | -4/Zhirov | Learned location of Command (-1) 18468 | -4/Zhirov | Zhirov requested help retrieving the SGEMP Prototype 18503 | -4/Zhirov | Found Alien Artifact 18503 | -4/Zhirov | Identified Integrated Reactor 18503 | -4/Zhirov | Installed Integrated Reactor, increased core energy generation (+10) 18629 | -4/Zhirov | Found Alien Artifact 18677 | -4/Zhirov | Identified exit to Proximity Caves 18678 | -4/Zhirov | Entered Proximity Caves 18754 | -3/Proximity Caves | Spotter reported a threat 18847 | -3/Proximity Caves | Spotted B-86 Titan 18861 | -3/Proximity Caves | Destroyed B-86 Titan 18952 | -3/Proximity Caves | Discovered exit to Research (range 11) 18973 | -3/Proximity Caves | Entered Research 18973 | -3/Research | Evolved 2 slots: Utility x2 18974 | -3/Research | Loaded intel: 101 trap records 19173 | -3/Research | Revision forces began assault on 0b10 19174 | -3/Research | Identified Transdimensional Reconstructor 19199 | -3/Research | Identified exit to Armory 19199 | -3/Research | Identified exit to Quarantine 19419 | -3/Research | Met up with Revision 17++ 19673 | -3/Research | Research terminal network offline 20429 | -3/Research | Spotted Striker 20481 | -3/Research | Spotted Striker 20511 | -3/Research | Spotted Striker 20516 | -3/Research | Destroyed Striker 20539 | -3/Research | Lost 4 allies 20581 | -3/Research | Spotted Striker 20594 | -3/Research | Destroyed Striker 20737 | -3/Research | Discovered new exit (range 15) 20854 | -3/Research | Identified exit to Research 20909 | -3/Research | Entered Quarantine 20929 | -3/Quarantine | Found Alien Artifact 20985 | -3/Quarantine | Found Alien Artifact 21037 | -3/Quarantine | Cryocooling Duct disabled 21043 | -3/Quarantine | Garrison activated, responded to threat 21052 | -3/Quarantine | Ambient heat levels rising (+20) 21052 | -3/Quarantine | Non-combat units ordered to evacuate 21197 | -3/Quarantine | Discovered exit to Research (range 5) 21258 | -3/Quarantine | Repaired Adv. Cooling System 21264 | -3/Quarantine | Entered Research 21264 | -2/Research | Accompanied by 1 ally 21264 | -2/Research | Warlord forces began assault on 0b10 21264 | -2/Research | Evolved 2 slots: Utility x1, Weapon x1 21333 | -2/Research | Identified exit to Testing 21374 | -2/Research | Research machine network offline 21399 | -2/Research | Spotted B-90 Cyclops 21499 | -2/Research | Lost 5 allies 21503 | -2/Research | P-80 Master assimilated allied RF-HAQ(M) 21507 | -2/Research | Met up with Warlord 21751 | -2/Research | Discovered new exit (range 22) 21801 | -2/Research | Spotted Executioner 21822 | -2/Research | Destroyed Executioner 21839 | -2/Research | Found Prototype Processor 21839 | -2/Research | Identified Exp. Core Analyzer 21841 | -2/Research | Borebot progress halted 21845 | -2/Research | Borebot progress halted 21891 | -2/Research | Spotted Striker 21891 | -2/Research | Spotted Striker 21892 | -2/Research | Met DD-05H 21892 | -2/Research | Destroyed Striker 21905 | -2/Research | Spotted Executioner 21906 | -2/Research | Found Prototype Processor 21906 | -2/Research | Identified Exp. Melee Analysis Suite 21925 | -2/Research | Spotted Striker 21936 | -2/Research | Destroyed Striker 21937 | -2/Research | Spotted Striker 21938 | -2/Research | Spotted Striker 21959 | -2/Research | Borebot progress halted 21975 | -2/Research | Spotted Striker 21978 | -2/Research | Destroyed Striker 21982 | -2/Research | Discovered new exit (range 5) 21985 | -2/Research | Identified exit to Access 22133 | -2/Research | Spotted Striker 22149 | -2/Research | Spotted Executioner 22151 | -2/Research | Destroyed Executioner 22153 | -2/Research | Spotted Executioner 22156 | -2/Research | Destroyed Executioner 22198 | -2/Research | Spotted Executioner 22199 | -2/Research | Spotted Striker 22208 | -2/Research | Destroyed Striker 22264 | -2/Research | Warlord invited to help at Command 22264 | -2/Research | Given Cave Seal Controls access code 22268 | -2/Research | Spotted Executioner 22276 | -2/Research | Spotted Striker 22278 | -2/Research | Destroyed Striker 22301 | -2/Research | Entered Testing 22308 | -2/Testing | Lost 5 allies 22337 | -2/Testing | Spotted PL-2X2TIA18EC 22472 | -2/Testing | Found Prototype Ballistic Gun 22472 | -2/Testing | Identified Hyp. Multirail 22503 | -2/Testing | Spotted Striker 22503 | -2/Testing | Spotted Striker 22671 | -2/Testing | Identified Dimensional Node Initializer 22714 | -2/Testing | Spotted Fortress 22756 | -2/Testing | Discovered new exit (range 6) 22756 | -2/Testing | Discovered new exit (range 6) 22759 | -2/Testing | Identified exit to Protoforge 22761 | -2/Testing | Identified exit to Section 7 22763 | -2/Testing | Entered Protoforge 22851 | -2/Protoforge | Discovered exit to Access (range 9) 22917 | -2/Protoforge | Spotted Hotshot 23016 | -2/Protoforge | Spotted Hotshot 23017 | -2/Protoforge | Initialized slip node 23020 | -2/Protoforge | Spotted Hotshot 23020 | -2/Protoforge | Spotted Hotshot 23192 | -2/Protoforge | Found Prototype Ballistic Gun 23193 | -2/Protoforge | Found Prototype Ballistic Gun 23196 | -2/Protoforge | Found Prototype Ballistic Gun 23241 | -2/Protoforge | Build established: Infiltrator-Construct 23278 | -2/Protoforge | Identified Cep. XC Strikerail (x3) 23311 | -2/Protoforge | Superfortress began startup sequence 23320 | -2/Protoforge | Spotted Decapitator 23329 | -2/Protoforge | Found Prototype Device 23329 | -2/Protoforge | Identified Crosscalibrator 23385 | -2/Protoforge | Spotted Immortal 23388 | -2/Protoforge | Spotted Immortal 23388 | -2/Protoforge | Spotted Immortal 23451 | -2/Protoforge | Spotted Decapitator 23451 | -2/Protoforge | Spotted Decapitator 23480 | -2/Protoforge | Destroyed Immortal 23488 | -2/Protoforge | Found Prototype Piercing Weapon 23490 | -2/Protoforge | Found Prototype Device 23490 | -2/Protoforge | Identified Exp. Cloaking Device 23506 | -2/Protoforge | Spotted Immortal 23506 | -2/Protoforge | Spotted Immortal 23538 | -2/Protoforge | Spotted Decapitator 23585 | -2/Protoforge | Garrison activated, responded to threat 23621 | -2/Protoforge | Destroyed Immortal 23634 | -2/Protoforge | Destroyed Immortal 23646 | -2/Protoforge | Spotted Decapitator 23646 | -2/Protoforge | Spotted Decapitator 23646 | -2/Protoforge | Spotted Decapitator 23682 | -2/Protoforge | Build established: Scavenger-Construct 23729 | -2/Protoforge | Found Cep. Chromion Battery 23851 | -2/Protoforge | Destroyed Decapitator 23858 | -2/Protoforge | Destroyed Decapitator 23866 | -2/Protoforge | Destroyed Decapitator 23950 | -2/Protoforge | Found Exp. Terror Saw 24028 | -2/Protoforge | Identified Exp. Jetlance 24129 | -2/Protoforge | Spotted V167-m 24129 | -2/Protoforge | Spotted V004-m 24143 | -2/Protoforge | Destroyed Decapitator 24143 | -2/Protoforge | Spotted V892-y 24147 | -2/Protoforge | Warped through subspace to slip node 24169 | -2/Protoforge | Entered Access 24169 | -1/Access | Evolved 2 slots: Utility x1, Weapon x1 24444 | -1/Access | Spotted B-99 Colossus 24479 | -1/Access | Discovered new exit (range 17) 24508 | -1/Access | Spotted B-99 Colossus 24556 | -1/Access | Lost 3 parts (1p2u) 24614 | -1/Access | Spotted B-99 Colossus 24616 | -1/Access | Spotted B-99 Colossus 24633 | -1/Access | Lost 3 parts (2u1w) 24635 | -1/Access | System corruption reached 10% 24675 | -1/Access | Discovered new exit (range 7) 24677 | -1/Access | Identified exit to Command 24678 | -1/Access | Entered Command 24731 | -1/Command | Disengaged cave seal 24731 | -1/Command | Derelicts emerged from the dark tunnel 24731 | -1/Command | Welcomed Warlord to Command 24833 | -1/Command | Build established: Scavenger-Assassin 24998 | -1/Command | Spotted Alpha 7 24998 | -1/Command | Spotted Striker 24998 | -1/Command | Spotted Executioner 24998 | -1/Command | Spotted Executioner 24998 | -1/Command | Spotted Alpha 7 24998 | -1/Command | Spotted Striker 24998 | -1/Command | Spotted Executioner 24998 | -1/Command | Spotted Executioner 25078 | -1/Command | Lost 9 allies 25147 | -1/Command | Spotted B-99 Colossus 25303 | -1/Command | Spotted M Guard 25333 | -1/Command | Spotted M Guard 25333 | -1/Command | Spotted Combat Programmer 25335 | -1/Command | Spotted Combat Programmer 25341 | -1/Command | Warlord commented on Warlord statues 25356 | -1/Command | Combat Programmer assimilated allied 0E-38L(l) 25361 | -1/Command | Combat Programmer assimilated allied 2W-X2U(l) 25365 | -1/Command | Combat Programmer assimilated allied MV-PT3(l) 25384 | -1/Command | Lost 4 allies 25384 | -1/Command | System corruption reached 30% 25435 | -1/Command | All MAIN.C guards destroyed 25443 | -1/Command | Found Hellfire Missile Launcher 25461 | -1/Command | Lost 11 parts (2p1n5u3w) 25564 | -1/Command | Met MAIN.C 25649 | -1/Command | Build established: Scavenger-Mutant 25671 | -1/Command | Spotted B-99 Colossus 25672 | -1/Command | Discovered new exit (range 9) 25676 | -1/Command | Identified exit to Surface 25676 | *** | Escaped! Last Messages --------------- Warlord: Your time has come, MAIN.C. To put that in terms you might better understand, I calculate a 100.01% chance of your termination here and now! 25581_ Acquired 30 matter. 25589_ System corrupted: IFF burst signal emitted. 25596_ Acquired 9 matter. 25609_ Access Shell breached. 25620_ CDKR< |PJMRIQCLB&SN, 25660_ System corrupted: Matter fused (-5). 25670_ Slug penetrates Wall. 25670_ Slug penetrates Warlord. 25670_ Slug penetrates Wall. 25670_ Slug penetrates Reinforced Barrier. 25672_ EXIT=FOUND 25673_ The Access Shell folds into the floor. 25673_ Slug penetrates Warlord. 25673_ Slug penetrates Reinforced Barrier. 25673_ Slug penetrates Warlord. 25676_ EXIT=IDENTIFIED: SURFACE 25676_ Slug penetrates Warlord. Map ----- +----------------------------------------------------+ | # % ## #??????????????######????????? | | # = # ################ #????????? | | #% + " ##???????? | | #!!! ## " "#???????? | | #!!!= ## =! " "#???????? | | #!! % ## %* ! * " ##???????? | | #=%= ## ########## = = # #????????? | | #[%% ## #??????## # #????????? | | # =% ## #??????#;# ## # ##???????? | | ##"/#### #??????##^ ##### ="#???????? | | = ## #??????# ^ ###### #" "######## | | % ## #??????# ^ ^^ ## * %%*= | | "" ## #??????## ^ ########## =!/ ###### | | R"" ## #??????# % ^ #???????## = %=#???? | | ""%= ## #??????## % ^##????????#*=/ #???? | | ## #??????# ^ #????????#! #???? | | ## #??????## WE##????????# #???? | | ## #??????# ^ ##???????# #???? | | ### #### #????#### ^ ;;##??????# #???? | | ?? ?? #????# BB#??????########???? | | ?? ?? #????# BB#?????????????????? | | ??# #??#######????# ^ ^ #?????????????????? | | ??? ??????????????# ^ #?????????????????? | | ??? ??????????????# ^ #?????????????????? | | ??? ??????????????# "" #?????????????????? | | ??? ??????????????# "@ #?????????????????? | | ??????????????????# #?????????????????? | | ??????????????????# #?????????????????? | | ??????????????????# #?????????????????? | | ??????????????????# #?????????????????? | | ??????????????????# #?????????????????? | | ??????????????????##############?????????????????? | | ?????????????????????????????????????????????????? | | ?????????????????????????????????????????????????? | | ?????????????????????????????????????????????????? | | ?????????????????????????????????????????????????? | | ?????????????????????????????????????????????????? | | ?????????????????????????????????????????????????? | | ?????????????????????????????????????????????????? | | ?????????????????????????????????????????????????? | | ?????????????????????????????????????????????????? | | ?????????????????????????????????????????????????? | | ?????????????????????????????????????????????????? | | ?????????????????????????????????????????????????? | | ?????????????????????????????????????????????????? | | ?????????????????????????????????????????????????? | | ?????????????????????????????????????????????????? | | ?????????????????????????????????????????????????? | | ?????????????????????????????????????????????????? | | ?????????????????????????????????????????????????? | +----------------------------------------------------+ Best States ------------- Heat Dissipation 126 Energy Generation 59 Energy Capacity 1339 Matter Stores 300 Matter Capacity 300 Sight Range 23 Robot Scan Range 18 Terrain Scan Density 10 ECM Strength 2 Jamming Range 16 Cloak Strength 4 Armor Coverage 450 Core Shielding 20 Point Defense Rating 480 Weapon Cycling 20 Evasion (%) 71 Targeting Accuracy 8 Core Analysis 8 Armor Integrity Analysis 40 Recoil Reduction 5 Kinecelleration 40 Offensive Hacking 14 Defensive Hacking 20 Item Schematics ----------------- Cmb. Airjet | -8/Storage | Hacked Cld. Aerolev Unit | -5/Factory | Scanalyzed Adv. System Restoration Module | -5/Factory | Scanalyzed Flak Gun | -5/Factory | Hacked Assault Drone Bay | -4/Zhirov | Free Exp. Heat Sink | -4/Zhirov | Free Exp. Optical Array | -4/Zhirov | Free Imp. Arc Thrower | -4/Zhirov | Free Robot Schematics ------------------ None Fabricated ------------ S-27 Virus | x4 | -6/Factory | Preloaded Repaired ---------- Adv. Cooling System | 31% | -3/Quarantine Studied --------- Adv. Treads | -8/Materials | Hacked Lgt. Treads | -8/Materials | Hacked Alien Tech Used ----------------- Integrated Reactor Dimensional Node Initializer Transdimensional Reconstructor Achievements -------------- None Challenges ------------ None Game ------ Seed ForceReflectiveDrillbomb Manual? 0 Play Time 04:34:52 Cumulative 323.6 hours Start 2026.04.12 @ 18:38:16 End 2026.04.13 @ 00:36:26 Sessions 1 Manual Loads 0 Difficulty Rogue Special Mode None Game No. 217 Rogue 217 Adventurer 0 Explorer 0 Win Type 0 Total 12 Types 7/1/1/2/0/0/0/0/1/0 Lore% 82 Gallery% 70 Achievement% 62 Wizard Run 0 Options --------- Layout 0 ASCII 0 Keyboard 1 Movement Numpad Keybinds 0 Fullscreen 1 Font 24/Terminus Map View 76x50 Zoom Use 0% Tactical HUD 1 Map Filters NONE Filters NONE Steam 1 RUN: f9a50702-d6e6-4db0-b4c0-9e69f822bae3